Workbook

Sheet 業務スケジュール管理表（ver.2.0.0）
C1: 業務スケジュール管理表 【履行期間設定支援型】 | W1: 更新日 | X1: 2020-04-10
B2: 業 務 名 | AI2: 現 在 の 状 況 | BK2: 【スケジュール管理表への意見・改善点等】
B3: 受 注 者 | BK3: （自由記述）
B4: 契 約 額 (消費税込み)
B5: 主 た る 工 種 | S5: 履行期間設定支援 | X5: 自動（デフォルト）
B6: 業 種 区 分 （複数選択可） | S6: 手動設定の理由 | AE6: =IF(AND($X$6="",$X$5="手動"),"←理由記入","") -> 
B7: 履 行 期 間 | K7: ～ | S7: 設計着手日（※）
B8: 管 理 技 術 者 | FA8: 履行期間(休日含む) | FB8: =M7-G7 -> 0 | FC8: 日
B9: 照 査 技 術 者
B10: 担 当 技 術 者（主）、担 当 技 術 者（副） | AI10: 次 回 打 合 せ
AD11: （※設計着手日：設計業務として着手を開始した日（履行期間設定支援の起算日）を記入。）
L13: 西暦 | M13: 2020 | P13: 年 | S13: =IF(N15=12,M13+1,M13) -> 2020 | V13: 年 | Y13: =IF(T15=12,S13+1,S13) -> 2020 | AB13: 年 | AE13: =IF(Z15=12,Y13+1,Y13) -> 2020 | AH13: 年 | AK13: =IF(AF15=12,AE13+1,AE13) -> 2020 | AN13: 年 | AQ13: =IF(AL15=12,AK13+1,AK13) -> 2020 | AT13: 年 | AW13: =IF(AR15=12,AQ13+1,AQ13) -> 2020 | AZ13: 年 | BC13: =IF(AX15=12,AW13+1,AW13) -> 2020 | BF13: 年 | BI13: =IF(BD15=12,BC13+1,BC13) -> 2020 | BL13: 年 | BO13: =IF(BJ15=12,BI13+1,BI13) -> 2021 | BR13: 年 | BU13: =IF(BP15=12,BO13+1,BO13) -> 2021 | BX13: 年 | CA13: =IF(BV15=12,BU13+1,BU13) -> 2021 | CD13: 年 | CG13: =IF(CB15=12,CA13+1,CA13) -> 2021 | CJ13: 年 | CM13: =IF(CH15=12,CG13+1,CG13) -> 2021 | CP13: 年 | CS13: =IF(CN15=12,CM13+1,CM13) -> 2021 | CV13: 年 | CY13: =IF(CT15=12,CS13+1,CS13) -> 2021 | DB13: 年 | DE13: =IF(CZ15=12,CY13+1,CY13) -> 2021 | DH13: 年 | DK13: =IF(DF15=12,DE13+1,DE13) -> 2021 | DN13: 年 | DQ13: =IF(DL15=12,DK13+1,DK13) -> 2021 | DT13: 年 | DW13: =IF(DR15=12,DQ13+1,DQ13) -> 2021 | DZ13: 年 | EC13: =IF(DX15=12,DW13+1,DW13) -> 2021 | EF13: 年 | EI13: =IF(ED15=12,EC13+1,EC13) -> 2022 | EL13: 年 | EO13: =IF(EJ15=12,EI13+1,EI13) -> 2022 | ER13: 年 | EU13: =IF(EP15=12,EO13+1,EO13) -> 2022 | EX13: 年
M14: =M18/2 -> 4 | N14: =M18/2 -> 4 | O14: =O18/2 -> 3 | P14: =O18/2 -> 3 | Q14: =Q18/2 -> 3.5 | R14: =Q18/2 -> 3.5 | S14: =S18/2 -> 1.5 | T14: =S18/2 -> 1.5 | U14: =U18/2 -> 4 | V14: =U18/2 -> 4 | W14: =W18/2 -> 3.5 | X14: =W18/2 -> 3.5 | Y14: =Y18/2 -> 4 | Z14: =Y18/2 -> 4 | AA14: =AA18/2 -> 3.5 | AB14: =AA18/2 -> 3.5 | AC14: =AC18/2 -> 3.5 | AD14: =AC18/2 -> 3.5 | AE14: =AE18/2 -> 4 | AF14: =AE18/2 -> 4 | AG14: =AG18/2 -> 3 | AH14: =AG18/2 -> 3 | AI14: =AI18/2 -> 3.5 | AJ14: =AI18/2 -> 3.5 | AK14: =AK18/2 -> 2.5 | AL14: =AK18/2 -> 2.5 | AM14: =AM18/2 -> 3.5 | AN14: =AM18/2 -> 3.5 | AO14: =AO18/2 -> 3.5 | AP14: =AO18/2 -> 3.5 | AQ14: 4 | AR14: 4 | AS14: 3 | AT14: 3 | AU14: 3 | AV14: 3 | AW14: 3.5 | AX14: 3.5 | AY14: 3.5 | AZ14: 3.5 | BA14: 4 | BB14: 4 | BC14: 3 | BD14: 3 | BE14: 4 | BF14: 4 | BG14: 2.5 | BH14: 2.5 | BI14: 4 | BJ14: 4 | BK14: 3 | BL14: 3 | BM14: 3 | BN14: 3 | BO14: 2.5 | BP14: 2.5 | BQ14: 3.5 | BR14: 3.5 | BS14: 3.5 | BT14: 3.5 | BU14: 4 | BV14: 4 | BW14: 3 | BX14: 3 | BY14: 2 | BZ14: 2 | CA14: 4 | CB14: 4 | CC14: 3.5 | CD14: 3.5 | CE14: 4 | CF14: 4 | CG14: =CG18/2 -> 3.5 | CH14: =CG18/2 -> 3.5 | CI14: =CI18/2 -> 3.5 | CJ14: =CI18/2 -> 3.5 | CK14: =CK18/2 -> 3.5 | CL14: =CK18/2 -> 3.5 | CM14: =CM18/2 -> 1.5 | CN14: =CM18/2 -> 1.5 | CO14: =CO18/2 -> 4 | CP14: =CO18/2 -> 4 | CQ14: =CQ18/2 -> 3.5 | CR14: =CQ18/2 -> 3.5 | CS14: =CS18/2 -> 4 | CT14: =CS18/2 -> 4 | CU14: =CU18/2 -> 3 | CV14: =CU18/2 -> 3 | CW14: =CW18/2 -> 4 | CX14: =CW18/2 -> 4 | CY14: =CY18/2 -> 3.5 | CZ14: =CY18/2 -> 3.5 | DA14: =DA18/2 -> 3 | DB14: =DA18/2 -> 3 | DC14: =DC18/2 -> 4 | DD14: =DC18/2 -> 4 | DE14: =DE18/2 -> 3.5 | DF14: =DE18/2 -> 3.5 | DG14: =DG18/2 -> 3 | DH14: =DG18/2 -> 3 | DI14: =DI18/2 -> 3.5 | DJ14: =DI18/2 -> 3.5 | DK14: =DK18/2 -> 4 | DL14: =DK18/2 -> 4 | DM14: =DM18/2 -> 2.5 | DN14: =DM18/2 -> 2.5 | DO14: =DO18/2 -> 3.5 | DP14: =DO18/2 -> 3.5 | DQ14: =DQ18/2 -> 3 | DR14: =DQ18/2 -> 3 | DS14: =DS18/2 -> 3.5 | DT14: =DS18/2 -> 3.5 | DU14: =DU18/2 -> 3.5 | DV14: =DU18/2 -> 3.5 | DW14: =DW18/2 -> 3.5 | DX14: =DW18/2 -> 3.5 | DY14: =DY18/2 -> 3.5 | DZ14: =DY18/2 -> 3.5 | EA14: =EA18/2 -> 3 | EB14: =EA18/2 -> 3 | EC14: =EC18/2 -> 4 | ED14: =EC18/2 -> 4 | EE14: =EE18/2 -> 3 | EF14: =EE18/2 -> 3 | EG14: =EG18/2 -> 3 | EH14: =EG18/2 -> 3 | EI14: =EI18/2 -> 2 | EJ14: =EI18/2 -> 2 | EK14: =EK18/2 -> 4 | EL14: =EK18/2 -> 4 | EM14: =EM18/2 -> 3.5 | EN14: =EM18/2 -> 3.5 | EO14: =EO18/2 -> 4 | EP14: =EO18/2 -> 4 | EQ14: =EQ18/2 -> 2.5 | ER14: =EQ18/2 -> 2.5 | ES14: =ES18/2 -> 2.5 | ET14: =ES18/2 -> 2.5 | EU14: =EU18/2 -> 4 | EV14: =EU18/2 -> 4 | EW14: =EW18/2 -> 3 | EX14: =EW18/2 -> 3 | EY14: =EY18/2 -> 4 | EZ14: =EY18/2 -> 4
B15: 作業項目 | F15: 着手日 | H15: 完了日（当初） | J15: 完了日（変更） ※変更があった場合のみ | L15: 作業日数 | N15: 4 | P15: 月 | T15: =MOD(N15,12)+1 -> 5 | V15: 月 | Z15: =MOD(T15,12)+1 -> 6 | AB15: 月 | AF15: =MOD(Z15,12)+1 -> 7 | AH15: 月 | AL15: =MOD(AF15,12)+1 -> 8 | AN15: 月 | AR15: =MOD(AL15,12)+1 -> 9 | AT15: 月 | AX15: =MOD(AR15,12)+1 -> 10 | AZ15: 月 | BD15: =MOD(AX15,12)+1 -> 11 | BF15: 月 | BJ15: =MOD(BD15,12)+1 -> 12 | BL15: 月 | BP15: =MOD(BJ15,12)+1 -> 1 | BR15: 月 | BV15: =MOD(BP15,12)+1 -> 2 | BX15: 月 | CB15: =MOD(BV15,12)+1 -> 3 | CD15: 月 | CH15: =MOD(CB15,12)+1 -> 4 | CJ15: 月 | CN15: =MOD(CH15,12)+1 -> 5 | CP15: 月 | CT15: =MOD(CN15,12)+1 -> 6 | CV15: 月 | CZ15: =MOD(CT15,12)+1 -> 7 | DB15: 月 | DF15: =MOD(CZ15,12)+1 -> 8 | DH15: 月 | DL15: =MOD(DF15,12)+1 -> 9 | DN15: 月 | DR15: =MOD(DL15,12)+1 -> 10 | DT15: 月 | DX15: =MOD(DR15,12)+1 -> 11 | DZ15: 月 | ED15: =MOD(DX15,12)+1 -> 12 | EF15: 月 | EJ15: =MOD(ED15,12)+1 -> 1 | EL15: 月 | EP15: =MOD(EJ15,12)+1 -> 2 | ER15: 月 | EV15: =MOD(EP15,12)+1 -> 3 | EX15: 月 | FA15: 履行期間 集計 （休日除く） | FD15: 備 考
M16: 1 | N16: 10 | O16: 11 | P16: 20 | Q16: 21 | R16: =IF(N15<>2,DAY(EOMONTH(N15&"/1",0)),IF(OR(M13=2020,M13=2024,M13=2028,M13=2032)*(N15=2),29,28)) -> 30 | S16: 1 | T16: 10 | U16: 11 | V16: 20 | W16: 21 | X16: =IF(T15<>2,DAY(EOMONTH(T15&"/1",0)),IF(OR(S13=2020,S13=2024,S13=2028,S13=2032)*(T15=2),29,28)) -> 31 | Y16: 1 | Z16: 10 | AA16: 11 | AB16: 20 | AC16: 21 | AD16: =IF(Z15<>2,DAY(EOMONTH(Z15&"/1",0)),IF(OR(Y13=2020,Y13=2024,Y13=2028,Y13=2032)*(Z15=2),29,28)) -> 30 | AE16: 1 | AF16: 10 | AG16: 11 | AH16: 20 | AI16: 21 | AJ16: =IF(AF15<>2,DAY(EOMONTH(AF15&"/1",0)),IF(OR(AE13=2020,AE13=2024,AE13=2028,AE13=2032)*(AF15=2),29,28)) -> 31 | AK16: 1 | AL16: 10 | AM16: 11 | AN16: 20 | AO16: 21 | AP16: =IF(AL15<>2,DAY(EOMONTH(AL15&"/1",0)),IF(OR(AK13=2020,AK13=2024,AK13=2028,AK13=2032)*(AL15=2),29,28)) -> 31 | AQ16: 1 | AR16: 10 | AS16: 11 | AT16: 20 | AU16: 21 | AV16: =IF(AR15<>2,DAY(EOMONTH(AR15&"/1",0)),IF(OR(AQ13=2020,AQ13=2024,AQ13=2028,AQ13=2032)*(AR15=2),29,28)) -> 30 | AW16: 1 | AX16: 10 | AY16: 11 | AZ16: 20 | BA16: 21 | BB16: =IF(AX15<>2,DAY(EOMONTH(AX15&"/1",0)),IF(OR(AW13=2020,AW13=2024,AW13=2028,AW13=2032)*(AX15=2),29,28)) -> 31 | BC16: 1 | BD16: 10 | BE16: 11 | BF16: 20 | BG16: 21 | BH16: =IF(BD15<>2,DAY(EOMONTH(BD15&"/1",0)),IF(OR(BC13=2020,BC13=2024,BC13=2028,BC13=2032)*(BD15=2),29,28)) -> 30 | BI16: 1 | BJ16: 10 | BK16: 11 | BL16: 20 | BM16: 21 | BN16: =IF(BJ15<>2,DAY(EOMONTH(BJ15&"/1",0)),IF(OR(BI13=2020,BI13=2024,BI13=2028,BI13=2032)*(BJ15=2),29,28)) -> 31 | BO16: 1 | BP16: 10 | BQ16: 11 | BR16: 20 | BS16: 21 | BT16: =IF(BP15<>2,DAY(EOMONTH(BP15&"/1",0)),IF(OR(BO13=2020,BO13=2024,BO13=2028,BO13=2032)*(BP15=2),29,28)) -> 31 | BU16: 1 | BV16: 10 | BW16: 11 | BX16: 20 | BY16: 21 | BZ16: =IF(BV15<>2,DAY(EOMONTH(BV15&"/1",0)),IF(OR(BU13=2020,BU13=2024,BU13=2028,BU13=2032)*(BV15=2),29,28)) -> 28 | CA16: 1 | CB16: 10 | CC16: 11 | CD16: 20 | CE16: 21 | CF16: =IF(CB15<>2,DAY(EOMONTH(CB15&"/1",0)),IF(OR(CA13=2020,CA13=2024,CA13=2028,CA13=2032)*(CB15=2),29,28)) -> 31 | CG16: 1 | CH16: 10 | CI16: 11 | CJ16: 20 | CK16: 21 | CL16: =IF(CH15<>2,DAY(EOMONTH(CH15&"/1",0)),IF(OR(CG13=2020,CG13=2024,CG13=2028,CG13=2032)*(CH15=2),29,28)) -> 30 | CM16: 1 | CN16: 10 | CO16: 11 | CP16: 20 | CQ16: 21 | CR16: =IF(CN15<>2,DAY(EOMONTH(CN15&"/1",0)),IF(OR(CM13=2020,CM13=2024,CM13=2028,CM13=2032)*(CN15=2),29,28)) -> 31 | CS16: 1 | CT16: 10 | CU16: 11 | CV16: 20 | CW16: 21 | CX16: =IF(CT15<>2,DAY(EOMONTH(CT15&"/1",0)),IF(OR(CS13=2020,CS13=2024,CS13=2028,CS13=2032)*(CT15=2),29,28)) -> 30 | CY16: 1 | CZ16: 10 | DA16: 11 | DB16: 20 | DC16: 21 | DD16: =IF(CZ15<>2,DAY(EOMONTH(CZ15&"/1",0)),IF(OR(CY13=2020,CY13=2024,CY13=2028,CY13=2032)*(CZ15=2),29,28)) -> 31 | DE16: 1 | DF16: 10 | DG16: 11 | DH16: 20 | DI16: 21 | DJ16: =IF(DF15<>2,DAY(EOMONTH(DF15&"/1",0)),IF(OR(DE13=2020,DE13=2024,DE13=2028,DE13=2032)*(DF15=2),29,28)) -> 31 | DK16: 1 | DL16: 10 | DM16: 11 | DN16: 20 | DO16: 21 | DP16: =IF(DL15<>2,DAY(EOMONTH(DL15&"/1",0)),IF(OR(DK13=2020,DK13=2024,DK13=2028,DK13=2032)*(DL15=2),29,28)) -> 30 | DQ16: 1 | DR16: 10 | DS16: 11 | DT16: 20 | DU16: 21 | DV16: =IF(DR15<>2,DAY(EOMONTH(DR15&"/1",0)),IF(OR(DQ13=2020,DQ13=2024,DQ13=2028,DQ13=2032)*(DR15=2),29,28)) -> 31 | DW16: 1 | DX16: 10 | DY16: 11 | DZ16: 20 | EA16: 21 | EB16: =IF(DX15<>2,DAY(EOMONTH(DX15&"/1",0)),IF(OR(DW13=2020,DW13=2024,DW13=2028,DW13=2032)*(DX15=2),29,28)) -> 30 | EC16: 1 | ED16: 10 | EE16: 11 | EF16: 20 | EG16: 21 | EH16: =IF(ED15<>2,DAY(EOMONTH(ED15&"/1",0)),IF(OR(EC13=2020,EC13=2024,EC13=2028,EC13=2032)*(ED15=2),29,28)) -> 31 | EI16: 1 | EJ16: 10 | EK16: 11 | EL16: 20 | EM16: 21 | EN16: =IF(EJ15<>2,DAY(EOMONTH(EJ15&"/1",0)),IF(OR(EI13=2020,EI13=2024,EI13=2028,EI13=2032)*(EJ15=2),29,28)) -> 31 | EO16: 1 | EP16: 10 | EQ16: 11 | ER16: 20 | ES16: 21 | ET16: =IF(EP15<>2,DAY(EOMONTH(EP15&"/1",0)),IF(OR(EO13=2020,EO13=2024,EO13=2028,EO13=2032)*(EP15=2),29,28)) -> 28 | EU16: 1 | EV16: 10 | EW16: 11 | EX16: 20 | EY16: 21 | EZ16: =IF(EV15<>2,DAY(EOMONTH(EV15&"/1",0)),IF(OR(EU13=2020,EU13=2024,EU13=2028,EU13=2032)*(EV15=2),29,28)) -> 31
D17: 上旬(～10日),中旬(11～20日),下旬（21日～） | M17: 上旬 | O17: 中旬 | Q17: 下旬 | S17: 上旬 | U17: 中旬 | W17: 下旬 | Y17: 上旬 | AA17: 中旬 | AC17: 下旬 | AE17: 上旬 | AG17: 中旬 | AI17: 下旬 | AK17: 上旬 | AM17: 中旬 | AO17: 下旬 | AQ17: 上旬 | AS17: 中旬 | AU17: 下旬 | AW17: 上旬 | AY17: 中旬 | BA17: 下旬 | BC17: 上旬 | BE17: 中旬 | BG17: 下旬 | BI17: 上旬 | BK17: 中旬 | BM17: 下旬 | BO17: 上旬 | BQ17: 中旬 | BS17: 下旬 | BU17: 上旬 | BW17: 中旬 | BY17: 下旬 | CA17: 上旬 | CC17: 中旬 | CE17: 下旬 | CG17: 上旬 | CI17: 中旬 | CK17: 下旬 | CM17: 上旬 | CO17: 中旬 | CQ17: 下旬 | CS17: 上旬 | CU17: 中旬 | CW17: 下旬 | CY17: 上旬 | DA17: 中旬 | DC17: 下旬 | DE17: 上旬 | DG17: 中旬 | DI17: 下旬 | DK17: 上旬 | DM17: 中旬 | DO17: 下旬 | DQ17: 上旬 | DS17: 中旬 | DU17: 下旬 | DW17: 上旬 | DY17: 中旬 | EA17: 下旬 | EC17: 上旬 | EE17: 中旬 | EG17: 下旬 | EI17: 上旬 | EK17: 中旬 | EM17: 下旬 | EO17: 上旬 | EQ17: 中旬 | ES17: 下旬 | EU17: 上旬 | EW17: 中旬 | EY17: 下旬 | FA17: 計画日数（クリティカル） | FB17: =SUM(FB74,FB84,FB94,FB104,FB114,FB184,FB194,FB204,FB274,FB284,FB294,FB304,FB124,FB134,FB144,FB154,FB164,FB174,FB214,FB224,FB234,FB244,FB254,FB264) -> 0 | FC17: 日
D18: 作業日数（休日含まない）⇒ | M18: =NETWORKDAYS(M13&"/"&N15&"/"&M16,M13&"/"&N15&"/"&N16,休日設定!$B$5:$B$342) -> 8 | O18: =NETWORKDAYS(M13&"/"&N15&"/"&O16,M13&"/"&N15&"/"&P16,休日設定!$B$5:$B$342) -> 6 | Q18: =NETWORKDAYS(M13&"/"&N15&"/"&Q16,M13&"/"&N15&"/"&R16,休日設定!$B$5:$B$342) -> 7 | S18: =NETWORKDAYS(S13&"/"&T15&"/"&S16,S13&"/"&T15&"/"&T16,休日設定!$B$5:$B$342) -> 3 | U18: =NETWORKDAYS(S13&"/"&T15&"/"&U16,S13&"/"&T15&"/"&V16,休日設定!$B$5:$B$342) -> 8 | W18: =NETWORKDAYS(S13&"/"&T15&"/"&W16,S13&"/"&T15&"/"&X16,休日設定!$B$5:$B$342) -> 7 | Y18: =NETWORKDAYS(Y13&"/"&Z15&"/"&Y16,Y13&"/"&Z15&"/"&Z16,休日設定!$B$5:$B$342) -> 8 | AA18: =NETWORKDAYS(Y13&"/"&Z15&"/"&AA16,Y13&"/"&Z15&"/"&AB16,休日設定!$B$5:$B$342) -> 7 | AC18: =NETWORKDAYS(Y13&"/"&Z15&"/"&AC16,Y13&"/"&Z15&"/"&AD16,休日設定!$B$5:$B$342) -> 7 | AE18: =NETWORKDAYS(AE13&"/"&AF15&"/"&AE16,AE13&"/"&AF15&"/"&AF16,休日設定!$B$5:$B$342) -> 8 | AG18: =NETWORKDAYS(AE13&"/"&AF15&"/"&AG16,AE13&"/"&AF15&"/"&AH16,休日設定!$B$5:$B$342) -> 6 | AI18: =NETWORKDAYS(AE13&"/"&AF15&"/"&AI16,AE13&"/"&AF15&"/"&AJ16,休日設定!$B$5:$B$342) -> 7 | AK18: =NETWORKDAYS(AK13&"/"&AL15&"/"&AK16,AK13&"/"&AL15&"/"&AL16,休日設定!$B$5:$B$342) -> 5 | AM18: =NETWORKDAYS(AK13&"/"&AL15&"/"&AM16,AK13&"/"&AL15&"/"&AN16,休日設定!$B$5:$B$342) -> 7 | AO18: =NETWORKDAYS(AK13&"/"&AL15&"/"&AO16,AK13&"/"&AL15&"/"&AP16,休日設定!$B$5:$B$342) -> 7 | AQ18: =NETWORKDAYS(AQ13&"/"&AR15&"/"&AQ16,AQ13&"/"&AR15&"/"&AR16,休日設定!$B$5:$B$342) -> 8 | AS18: =NETWORKDAYS(AQ13&"/"&AR15&"/"&AS16,AQ13&"/"&AR15&"/"&AT16,休日設定!$B$5:$B$342) -> 6 | AU18: =NETWORKDAYS(AQ13&"/"&AR15&"/"&AU16,AQ13&"/"&AR15&"/"&AV16,休日設定!$B$5:$B$342) -> 6 | AW18: =NETWORKDAYS(AW13&"/"&AX15&"/"&AW16,AW13&"/"&AX15&"/"&AX16,休日設定!$B$5:$B$342) -> 7 | AY18: =NETWORKDAYS(AW13&"/"&AX15&"/"&AY16,AW13&"/"&AX15&"/"&AZ16,休日設定!$B$5:$B$342) -> 7 | BA18: =NETWORKDAYS(AW13&"/"&AX15&"/"&BA16,AW13&"/"&AX15&"/"&BB16,休日設定!$B$5:$B$342) -> 8 | BC18: =NETWORKDAYS(BC13&"/"&BD15&"/"&BC16,BC13&"/"&BD15&"/"&BD16,休日設定!$B$5:$B$342) -> 6 | BE18: =NETWORKDAYS(BC13&"/"&BD15&"/"&BE16,BC13&"/"&BD15&"/"&BF16,休日設定!$B$5:$B$342) -> 8 | BG18: =NETWORKDAYS(BC13&"/"&BD15&"/"&BG16,BC13&"/"&BD15&"/"&BH16,休日設定!$B$5:$B$342) -> 5 | BI18: =NETWORKDAYS(BI13&"/"&BJ15&"/"&BI16,BI13&"/"&BJ15&"/"&BJ16,休日設定!$B$5:$B$342) -> 8 | BK18: =NETWORKDAYS(BI13&"/"&BJ15&"/"&BK16,BI13&"/"&BJ15&"/"&BL16,休日設定!$B$5:$B$342) -> 6 | BM18: =NETWORKDAYS(BI13&"/"&BJ15&"/"&BM16,BI13&"/"&BJ15&"/"&BN16,休日設定!$B$5:$B$342) -> 6 | BO18: =NETWORKDAYS(BO13&"/"&BP15&"/"&BO16,BO13&"/"&BP15&"/"&BP16,休日設定!$B$5:$B$342) -> 5 | BQ18: =NETWORKDAYS(BO13&"/"&BP15&"/"&BQ16,BO13&"/"&BP15&"/"&BR16,休日設定!$B$5:$B$342) -> 7 | BS18: =NETWORKDAYS(BO13&"/"&BP15&"/"&BS16,BO13&"/"&BP15&"/"&BT16,休日設定!$B$5:$B$342) -> 7 | BU18: =NETWORKDAYS(BU13&"/"&BV15&"/"&BU16,BU13&"/"&BV15&"/"&BV16,休日設定!$B$5:$B$342) -> 8 | BW18: =NETWORKDAYS(BU13&"/"&BV15&"/"&BW16,BU13&"/"&BV15&"/"&BX16,休日設定!$B$5:$B$342) -> 6 | BY18: =NETWORKDAYS(BU13&"/"&BV15&"/"&BY16,BU13&"/"&BV15&"/"&BZ16,休日設定!$B$5:$B$342) -> 4 | CA18: =NETWORKDAYS(CA13&"/"&CB15&"/"&CA16,CA13&"/"&CB15&"/"&CB16,休日設定!$B$5:$B$342) -> 8 | CC18: =NETWORKDAYS(CA13&"/"&CB15&"/"&CC16,CA13&"/"&CB15&"/"&CD16,休日設定!$B$5:$B$342) -> 7 | CE18: =NETWORKDAYS(CA13&"/"&CB15&"/"&CE16,CA13&"/"&CB15&"/"&CF16,休日設定!$B$5:$B$342) -> 8 | CG18: =NETWORKDAYS(CG13&"/"&CH15&"/"&CG16,CG13&"/"&CH15&"/"&CH16,休日設定!$B$5:$B$342) -> 7 | CI18: =NETWORKDAYS(CG13&"/"&CH15&"/"&CI16,CG13&"/"&CH15&"/"&CJ16,休日設定!$B$5:$B$342) -> 7 | CK18: =NETWORKDAYS(CG13&"/"&CH15&"/"&CK16,CG13&"/"&CH15&"/"&CL16,休日設定!$B$5:$B$342) -> 7 | CM18: =NETWORKDAYS(CM13&"/"&CN15&"/"&CM16,CM13&"/"&CN15&"/"&CN16,休日設定!$B$5:$B$342) -> 3 | CO18: =NETWORKDAYS(CM13&"/"&CN15&"/"&CO16,CM13&"/"&CN15&"/"&CP16,休日設定!$B$5:$B$342) -> 8 | CQ18: =NETWORKDAYS(CM13&"/"&CN15&"/"&CQ16,CM13&"/"&CN15&"/"&CR16,休日設定!$B$5:$B$342) -> 7 | CS18: =NETWORKDAYS(CS13&"/"&CT15&"/"&CS16,CS13&"/"&CT15&"/"&CT16,休日設定!$B$5:$B$342) -> 8 | CU18: =NETWORKDAYS(CS13&"/"&CT15&"/"&CU16,CS13&"/"&CT15&"/"&CV16,休日設定!$B$5:$B$342) -> 6 | CW18: =NETWORKDAYS(CS13&"/"&CT15&"/"&CW16,CS13&"/"&CT15&"/"&CX16,休日設定!$B$5:$B$342) -> 8 | CY18: =NETWORKDAYS(CY13&"/"&CZ15&"/"&CY16,CY13&"/"&CZ15&"/"&CZ16,休日設定!$B$5:$B$342) -> 7 | DA18: =NETWORKDAYS(CY13&"/"&CZ15&"/"&DA16,CY13&"/"&CZ15&"/"&DB16,休日設定!$B$5:$B$342) -> 6 | DC18: =NETWORKDAYS(CY13&"/"&CZ15&"/"&DC16,CY13&"/"&CZ15&"/"&DD16,休日設定!$B$5:$B$342) -> 8 | DE18: =NETWORKDAYS(DE13&"/"&DF15&"/"&DE16,DE13&"/"&DF15&"/"&DF16,休日設定!$B$5:$B$342) -> 7 | DG18: =NETWORKDAYS(DE13&"/"&DF15&"/"&DG16,DE13&"/"&DF15&"/"&DH16,休日設定!$B$5:$B$342) -> 6 | DI18: =NETWORKDAYS(DE13&"/"&DF15&"/"&DI16,DE13&"/"&DF15&"/"&DJ16,休日設定!$B$5:$B$342) -> 7 | DK18: =NETWORKDAYS(DK13&"/"&DL15&"/"&DK16,DK13&"/"&DL15&"/"&DL16,休日設定!$B$5:$B$342) -> 8 | DM18: =NETWORKDAYS(DK13&"/"&DL15&"/"&DM16,DK13&"/"&DL15&"/"&DN16,休日設定!$B$5:$B$342) -> 5 | DO18: =NETWORKDAYS(DK13&"/"&DL15&"/"&DO16,DK13&"/"&DL15&"/"&DP16,休日設定!$B$5:$B$342) -> 7 | DQ18: =NETWORKDAYS(DQ13&"/"&DR15&"/"&DQ16,DQ13&"/"&DR15&"/"&DR16,休日設定!$B$5:$B$342) -> 6 | DS18: =NETWORKDAYS(DQ13&"/"&DR15&"/"&DS16,DQ13&"/"&DR15&"/"&DT16,休日設定!$B$5:$B$342) -> 7 | DU18: =NETWORKDAYS(DQ13&"/"&DR15&"/"&DU16,DQ13&"/"&DR15&"/"&DV16,休日設定!$B$5:$B$342) -> 7 | DW18: =NETWORKDAYS(DW13&"/"&DX15&"/"&DW16,DW13&"/"&DX15&"/"&DX16,休日設定!$B$5:$B$342) -> 7 | DY18: =NETWORKDAYS(DW13&"/"&DX15&"/"&DY16,DW13&"/"&DX15&"/"&DZ16,休日設定!$B$5:$B$342) -> 7 | EA18: =NETWORKDAYS(DW13&"/"&DX15&"/"&EA16,DW13&"/"&DX15&"/"&EB16,休日設定!$B$5:$B$342) -> 6 | EC18: =NETWORKDAYS(EC13&"/"&ED15&"/"&EC16,EC13&"/"&ED15&"/"&ED16,休日設定!$B$5:$B$342) -> 8 | EE18: =NETWORKDAYS(EC13&"/"&ED15&"/"&EE16,EC13&"/"&ED15&"/"&EF16,休日設定!$B$5:$B$342) -> 6 | EG18: =NETWORKDAYS(EC13&"/"&ED15&"/"&EG16,EC13&"/"&ED15&"/"&EH16,休日設定!$B$5:$B$342) -> 6 | EI18: =NETWORKDAYS(EI13&"/"&EJ15&"/"&EI16,EI13&"/"&EJ15&"/"&EJ16,休日設定!$B$5:$B$342) -> 4 | EK18: =NETWORKDAYS(EI13&"/"&EJ15&"/"&EK16,EI13&"/"&EJ15&"/"&EL16,休日設定!$B$5:$B$342) -> 8 | EM18: =NETWORKDAYS(EI13&"/"&EJ15&"/"&EM16,EI13&"/"&EJ15&"/"&EN16,休日設定!$B$5:$B$342) -> 7 | EO18: =NETWORKDAYS(EO13&"/"&EP15&"/"&EO16,EO13&"/"&EP15&"/"&EP16,休日設定!$B$5:$B$342) -> 8 | EQ18: =NETWORKDAYS(EO13&"/"&EP15&"/"&EQ16,EO13&"/"&EP15&"/"&ER16,休日設定!$B$5:$B$342) -> 5 | ES18: =NETWORKDAYS(EO13&"/"&EP15&"/"&ES16,EO13&"/"&EP15&"/"&ET16,休日設定!$B$5:$B$342) -> 5 | EU18: =NETWORKDAYS(EU13&"/"&EV15&"/"&EU16,EU13&"/"&EV15&"/"&EV16,休日設定!$B$5:$B$342) -> 8 | EW18: =NETWORKDAYS(EU13&"/"&EV15&"/"&EW16,EU13&"/"&EV15&"/"&EX16,休日設定!$B$5:$B$342) -> 6 | EY18: =NETWORKDAYS(EU13&"/"&EV15&"/"&EY16,EU13&"/"&EV15&"/"&EZ16,休日設定!$B$5:$B$342) -> 8 | FA18: 実施日数（クリティカル） | FB18: =SUM(FB79,FB89,FB99,FB109,FB119,FB189,FB199,FB209,FB279,FB289,FB299,FB309,FB129,FB139,FB149,FB159,FB169,FB179,FB219,FB229,FB239,FB249,FB259,FB269) -> 0 | FC18: 日
B19: 関連業務 | C19: 測量 | E19: 計画 | L19: =IF(J19="",NETWORKDAYS(F19,H19,休日設定!$B$5:$B$342),NETWORKDAYS(F19,J19,休日設定!$B$5:$B$342)) -> 0 | FA19: 作業日数（計画） | FB19: =SUMIFS($M$14:$EZ$14,$M21:$EZ21,"AA")+SUMIFS($M$14:$EZ$14,$M21:$EZ21,"AB") -> 0 | FC19: 日
E24: 実施 | L24: =IF(J24="",NETWORKDAYS(F24,H24,休日設定!$B$5:$B$342),NETWORKDAYS(F24,J24,休日設定!$B$5:$B$342)) -> 0 | FA24: 作業日数（実施） | FB24: =SUMIFS($M$14:$EZ$14,$M26:$EZ26,"BA")+SUMIFS($M$14:$EZ$14,$M26:$EZ26,"BB") -> 0 | FC24: 日
C29: 地質調査 | E29: 計画 | L29: =IF(J29="",NETWORKDAYS(F29,H29,休日設定!$B$5:$B$342),NETWORKDAYS(F29,J29,休日設定!$B$5:$B$342)) -> 0 | FA29: 作業日数（計画） | FB29: =SUMIFS($M$14:$EZ$14,$M31:$EZ31,"AA")+SUMIFS($M$14:$EZ$14,$M31:$EZ31,"AB") -> 0 | FC29: 日
E34: 実施 | L34: =IF(J34="",NETWORKDAYS(F34,H34,休日設定!$B$5:$B$342),NETWORKDAYS(F34,J34,休日設定!$B$5:$B$342)) -> 0 | FA34: 作業日数（実施） | FB34: =SUMIFS($M$14:$EZ$14,$M36:$EZ36,"BA")+SUMIFS($M$14:$EZ$14,$M36:$EZ36,"BB") -> 0 | FC34: 日
E39: 計画 | L39: =IF(J39="",NETWORKDAYS(F39,H39,休日設定!$B$5:$B$342),NETWORKDAYS(F39,J39,休日設定!$B$5:$B$342)) -> 0 | FA39: 作業日数（計画） | FB39: =SUMIFS($M$14:$EZ$14,$M41:$EZ41,"AA")+SUMIFS($M$14:$EZ$14,$M41:$EZ41,"AB") -> 0 | FC39: 日
E44: 実施 | L44: =IF(J44="",NETWORKDAYS(F44,H44,休日設定!$B$5:$B$342),NETWORKDAYS(F44,J44,休日設定!$B$5:$B$342)) -> 0 | FA44: 作業日数（実施） | FB44: =SUMIFS($M$14:$EZ$14,$M46:$EZ46,"BA")+SUMIFS($M$14:$EZ$14,$M46:$EZ46,"BB") -> 0 | FC44: 日
E49: 計画 | L49: =IF(J49="",NETWORKDAYS(F49,H49,休日設定!$B$5:$B$342),NETWORKDAYS(F49,J49,休日設定!$B$5:$B$342)) -> 0 | FA49: 作業日数（計画） | FB49: =SUMIFS($M$14:$EZ$14,$M51:$EZ51,"AA")+SUMIFS($M$14:$EZ$14,$M51:$EZ51,"AB") -> 0 | FC49: 日
E54: 実施 | L54: =IF(J54="",NETWORKDAYS(F54,H54,休日設定!$B$5:$B$342),NETWORKDAYS(F54,J54,休日設定!$B$5:$B$342)) -> 0 | FA54: 作業日数（実施） | FB54: =SUMIFS($M$14:$EZ$14,$M56:$EZ56,"BA")+SUMIFS($M$14:$EZ$14,$M56:$EZ56,"BB") -> 0 | FC54: 日
B64: 受注者 | C64: 照査◇、照査報告◆ （※手動入力、日付は初回照査～成果照査完了） | E64: 計画 | L64: =IF(J64="",NETWORKDAYS(F64,H64,休日設定!$B$5:$B$342),NETWORKDAYS(F64,J64,休日設定!$B$5:$B$342)) -> 0 | FA64: 照査報告（計画） | FB64: =COUNTIF(M64:EZ68,"◆") -> 0 | FC64: 回
E69: 実施 | L69: =IF(J69="",NETWORKDAYS(F69,H69,休日設定!$B$5:$B$342),NETWORKDAYS(F69,J69,休日設定!$B$5:$B$342)) -> 0 | FA69: 照査報告（実施） | FB69: =COUNTIF(M69:EZ73,"◆") -> 0 | FC69: 回
C74: 設計計画(現地踏査等含む) | E74: 計画 | L74: =IF(J74="",NETWORKDAYS(F74,H74,休日設定!$B$5:$B$342),NETWORKDAYS(F74,J74,休日設定!$B$5:$B$342)) -> 0 | FA74: クリティカル(計画) | FB74: 0 | FC74: 日
E79: 実施 | L79: =IF(J79="",NETWORKDAYS(F79,H79,休日設定!$B$5:$B$342),NETWORKDAYS(F79,J79,休日設定!$B$5:$B$342)) -> 0 | FA79: クリティカル(実施) | FB79: 0 | FC79: 日
C84: 基本事項の確定 | E84: 計画 | L84: =IF(J84="",NETWORKDAYS(F84,H84,休日設定!$B$5:$B$342),NETWORKDAYS(F84,J84,休日設定!$B$5:$B$342)) -> 0 | FA84: クリティカル(計画) | FB84: 0 | FC84: 日
E89: 実施 | L89: =IF(J89="",NETWORKDAYS(F89,H89,休日設定!$B$5:$B$342),NETWORKDAYS(F89,J89,休日設定!$B$5:$B$342)) -> 0 | FA89: クリティカル(実施) | FB89: 0 | FC89: 日
C94: 設計条件の整理・確認 | E94: 計画 | L94: =IF(J94="",NETWORKDAYS(F94,H94,休日設定!$B$5:$B$342),NETWORKDAYS(F94,J94,休日設定!$B$5:$B$342)) -> 0 | FA94: クリティカル(計画) | FB94: 0 | FC94: 日
E99: 実施 | L99: =IF(J99="",NETWORKDAYS(F99,H99,休日設定!$B$5:$B$342),NETWORKDAYS(F99,J99,休日設定!$B$5:$B$342)) -> 0 | FA99: クリティカル(実施) | FB99: 0 | FC99: 日
C104: 設計条件の確定（第1回照査報告） | E104: 計画 | L104: =IF(J104="",NETWORKDAYS(F104,H104,休日設定!$B$5:$B$342),NETWORKDAYS(F104,J104,休日設定!$B$5:$B$342)) -> 0 | FA104: クリティカル(計画) | FB104: 0 | FC104: 日
E109: 実施 | L109: =IF(J109="",NETWORKDAYS(F109,H109,休日設定!$B$5:$B$342),NETWORKDAYS(F109,J109,休日設定!$B$5:$B$342)) -> 0 | FA109: クリティカル(実施) | FB109: 0 | FC109: 日
E114: 計画 | L114: =IF(J114="",NETWORKDAYS(F114,H114,休日設定!$B$5:$B$342),NETWORKDAYS(F114,J114,休日設定!$B$5:$B$342)) -> 0 | FA114: クリティカル(計画) | FB114: 0 | FC114: 日
E119: 実施 | L119: =IF(J119="",NETWORKDAYS(F119,H119,休日設定!$B$5:$B$342),NETWORKDAYS(F119,J119,休日設定!$B$5:$B$342)) -> 0 | FA119: クリティカル(実施) | FB119: 0 | FC119: 日
E124: 計画 | L124: =IF(J124="",NETWORKDAYS(F124,H124,休日設定!$B$5:$B$342),NETWORKDAYS(F124,J124,休日設定!$B$5:$B$342)) -> 0 | FA124: クリティカル(計画) | FB124: 0 | FC124: 日
E129: 実施 | L129: =IF(J129="",NETWORKDAYS(F129,H129,休日設定!$B$5:$B$342),NETWORKDAYS(F129,J129,休日設定!$B$5:$B$342)) -> 0 | FA129: クリティカル(実施) | FB129: 0 | FC129: 日
E134: 計画 | L134: =IF(J134="",NETWORKDAYS(F134,H134,休日設定!$B$5:$B$342),NETWORKDAYS(F134,J134,休日設定!$B$5:$B$342)) -> 0 | FA134: クリティカル(計画) | FB134: 0 | FC134: 日
E139: 実施 | L139: =IF(J139="",NETWORKDAYS(F139,H139,休日設定!$B$5:$B$342),NETWORKDAYS(F139,J139,休日設定!$B$5:$B$342)) -> 0 | FA139: クリティカル(実施) | FB139: 0 | FC139: 日
E144: 計画 | L144: =IF(J144="",NETWORKDAYS(F144,H144,休日設定!$B$5:$B$342),NETWORKDAYS(F144,J144,休日設定!$B$5:$B$342)) -> 0 | FA144: クリティカル(計画) | FB144: 0 | FC144: 日
E149: 実施 | L149: =IF(J149="",NETWORKDAYS(F149,H149,休日設定!$B$5:$B$342),NETWORKDAYS(F149,J149,休日設定!$B$5:$B$342)) -> 0 | FA149: クリティカル(実施) | FB149: 0 | FC149: 日
E154: 計画 | L154: =IF(J154="",NETWORKDAYS(F154,H154,休日設定!$B$5:$B$342),NETWORKDAYS(F154,J154,休日設定!$B$5:$B$342)) -> 0 | FA154: クリティカル(計画) | FB154: 0 | FC154: 日
E159: 実施 | L159: =IF(J159="",NETWORKDAYS(F159,H159,休日設定!$B$5:$B$342),NETWORKDAYS(F159,J159,休日設定!$B$5:$B$342)) -> 0 | FA159: クリティカル(実施) | FB159: 0 | FC159: 日
E164: 計画 | L164: =IF(J164="",NETWORKDAYS(F164,H164,休日設定!$B$5:$B$342),NETWORKDAYS(F164,J164,休日設定!$B$5:$B$342)) -> 0 | FA164: クリティカル(計画) | FB164: 0 | FC164: 日
E169: 実施 | L169: =IF(J169="",NETWORKDAYS(F169,H169,休日設定!$B$5:$B$342),NETWORKDAYS(F169,J169,休日設定!$B$5:$B$342)) -> 0 | FA169: クリティカル(実施) | FB169: 0 | FC169: 日
E174: 計画 | L174: =IF(J174="",NETWORKDAYS(F174,H174,休日設定!$B$5:$B$342),NETWORKDAYS(F174,J174,休日設定!$B$5:$B$342)) -> 0 | FA174: クリティカル(計画) | FB174: 0 | FC174: 日
E179: 実施 | L179: =IF(J179="",NETWORKDAYS(F179,H179,休日設定!$B$5:$B$342),NETWORKDAYS(F179,J179,休日設定!$B$5:$B$342)) -> 0 | FA179: クリティカル(実施) | FB179: 0 | FC179: 日
E184: 計画 | L184: =IF(J184="",NETWORKDAYS(F184,H184,休日設定!$B$5:$B$342),NETWORKDAYS(F184,J184,休日設定!$B$5:$B$342)) -> 0 | FA184: クリティカル(計画) | FB184: 0 | FC184: 日
E189: 実施 | L189: =IF(J189="",NETWORKDAYS(F189,H189,休日設定!$B$5:$B$342),NETWORKDAYS(F189,J189,休日設定!$B$5:$B$342)) -> 0 | FA189: クリティカル(実施) | FB189: 0 | FC189: 日
E194: 計画 | L194: =IF(J194="",NETWORKDAYS(F194,H194,休日設定!$B$5:$B$342),NETWORKDAYS(F194,J194,休日設定!$B$5:$B$342)) -> 0 | FA194: クリティカル(計画) | FB194: 0 | FC194: 日
E199: 実施 | L199: =IF(J199="",NETWORKDAYS(F199,H199,休日設定!$B$5:$B$342),NETWORKDAYS(F199,J199,休日設定!$B$5:$B$342)) -> 0 | FA199: クリティカル(実施) | FB199: 0 | FC199: 日
E204: 計画 | L204: =IF(J204="",NETWORKDAYS(F204,H204,休日設定!$B$5:$B$342),NETWORKDAYS(F204,J204,休日設定!$B$5:$B$342)) -> 0 | FA204: クリティカル(計画) | FB204: 0 | FC204: 日
E209: 実施 | L209: =IF(J209="",NETWORKDAYS(F209,H209,休日設定!$B$5:$B$342),NETWORKDAYS(F209,J209,休日設定!$B$5:$B$342)) -> 0 | FA209: クリティカル(実施) | FB209: 0 | FC209: 日
E214: 計画 | L214: =IF(J214="",NETWORKDAYS(F214,H214,休日設定!$B$5:$B$342),NETWORKDAYS(F214,J214,休日設定!$B$5:$B$342)) -> 0 | FA214: クリティカル(計画) | FB214: 0 | FC214: 日
E219: 実施 | L219: =IF(J219="",NETWORKDAYS(F219,H219,休日設定!$B$5:$B$342),NETWORKDAYS(F219,J219,休日設定!$B$5:$B$342)) -> 0 | FA219: クリティカル(実施) | FB219: 0 | FC219: 日
E224: 計画 | L224: =IF(J224="",NETWORKDAYS(F224,H224,休日設定!$B$5:$B$342),NETWORKDAYS(F224,J224,休日設定!$B$5:$B$342)) -> 0 | FA224: クリティカル(計画) | FB224: 0 | FC224: 日
E229: 実施 | L229: =IF(J229="",NETWORKDAYS(F229,H229,休日設定!$B$5:$B$342),NETWORKDAYS(F229,J229,休日設定!$B$5:$B$342)) -> 0 | FA229: クリティカル(実施) | FB229: 0 | FC229: 日
E234: 計画 | L234: =IF(J234="",NETWORKDAYS(F234,H234,休日設定!$B$5:$B$342),NETWORKDAYS(F234,J234,休日設定!$B$5:$B$342)) -> 0 | FA234: クリティカル(計画) | FB234: 0 | FC234: 日
E239: 実施 | L239: =IF(J239="",NETWORKDAYS(F239,H239,休日設定!$B$5:$B$342),NETWORKDAYS(F239,J239,休日設定!$B$5:$B$342)) -> 0 | FA239: クリティカル(実施) | FB239: 0 | FC239: 日
E244: 計画 | L244: =IF(J244="",NETWORKDAYS(F244,H244,休日設定!$B$5:$B$342),NETWORKDAYS(F244,J244,休日設定!$B$5:$B$342)) -> 0 | FA244: クリティカル(計画) | FB244: 0 | FC244: 日
E249: 実施 | L249: =IF(J249="",NETWORKDAYS(F249,H249,休日設定!$B$5:$B$342),NETWORKDAYS(F249,J249,休日設定!$B$5:$B$342)) -> 0 | FA249: クリティカル(実施) | FB249: 0 | FC249: 日
E254: 計画 | L254: =IF(J254="",NETWORKDAYS(F254,H254,休日設定!$B$5:$B$342),NETWORKDAYS(F254,J254,休日設定!$B$5:$B$342)) -> 0 | FA254: クリティカル(計画) | FB254: 0 | FC254: 日
E259: 実施 | L259: =IF(J259="",NETWORKDAYS(F259,H259,休日設定!$B$5:$B$342),NETWORKDAYS(F259,J259,休日設定!$B$5:$B$342)) -> 0 | FA259: クリティカル(実施) | FB259: 0 | FC259: 日
E264: 計画 | L264: =IF(J264="",NETWORKDAYS(F264,H264,休日設定!$B$5:$B$342),NETWORKDAYS(F264,J264,休日設定!$B$5:$B$342)) -> 0 | FA264: クリティカル(計画) | FB264: 0 | FC264: 日
E269: 実施 | L269: =IF(J269="",NETWORKDAYS(F269,H269,休日設定!$B$5:$B$342),NETWORKDAYS(F269,J269,休日設定!$B$5:$B$342)) -> 0 | FA269: クリティカル(実施) | FB269: 0 | FC269: 日
C274: 報告書作成・設計成果とりまとめ | E274: 計画 | L274: =IF(J274="",NETWORKDAYS(F274,H274,休日設定!$B$5:$B$342),NETWORKDAYS(F274,J274,休日設定!$B$5:$B$342)) -> 0 | FA274: クリティカル(計画) | FB274: 0 | FC274: 日
E279: 実施 | L279: =IF(J279="",NETWORKDAYS(F279,H279,休日設定!$B$5:$B$342),NETWORKDAYS(F279,J279,休日設定!$B$5:$B$342)) -> 0 | FA279: クリティカル(実施) | FB279: 0 | FC279: 日
C284: 成果照査・納品 | E284: 計画 | L284: =IF(J284="",NETWORKDAYS(F284,H284,休日設定!$B$5:$B$342),NETWORKDAYS(F284,J284,休日設定!$B$5:$B$342)) -> 0 | FA284: クリティカル(計画) | FB284: 0 | FC284: 日
E289: 実施 | L289: =IF(J289="",NETWORKDAYS(F289,H289,休日設定!$B$5:$B$342),NETWORKDAYS(F289,J289,休日設定!$B$5:$B$342)) -> 0 | FA289: クリティカル(実施) | FB289: 0 | FC289: 日
E294: 計画 | L294: =IF(J294="",NETWORKDAYS(F294,H294,休日設定!$B$5:$B$342),NETWORKDAYS(F294,J294,休日設定!$B$5:$B$342)) -> 0 | FA294: クリティカル(計画) | FB294: 0 | FC294: 日
E299: 実施 | L299: =IF(J299="",NETWORKDAYS(F299,H299,休日設定!$B$5:$B$342),NETWORKDAYS(F299,J299,休日設定!$B$5:$B$342)) -> 0 | FA299: クリティカル(実施) | FB299: 0 | FC299: 日
E304: 計画 | L304: =IF(J304="",NETWORKDAYS(F304,H304,休日設定!$B$5:$B$342),NETWORKDAYS(F304,J304,休日設定!$B$5:$B$342)) -> 0 | FA304: クリティカル(計画) | FB304: 0 | FC304: 日
E309: 実施 | L309: =IF(J309="",NETWORKDAYS(F309,H309,休日設定!$B$5:$B$342),NETWORKDAYS(F309,J309,休日設定!$B$5:$B$342)) -> 0 | FA309: クリティカル(実施) | FB309: 0 | FC309: 日
B315: 受注者・ 発注者 | C315: 設計協議 （※手動入力、日付は初回打ち合せ～最終打ち合せ） | E315: 計画 | L315: =IF(J315="",NETWORKDAYS(F315,H315,休日設定!$B$5:$B$342),NETWORKDAYS(F315,J315,休日設定!$B$5:$B$342)) -> 0
E320: 実施 | L320: =IF(J320="",NETWORKDAYS(F320,H320,休日設定!$B$5:$B$342),NETWORKDAYS(F320,J320,休日設定!$B$5:$B$342)) -> 0
C325: 合同現地踏査 （※手動入力、日付は準備～合同現地踏査完了） | E325: 計画 | L325: =IF(J325="",NETWORKDAYS(F325,H325,休日設定!$B$5:$B$342),NETWORKDAYS(F325,J325,休日設定!$B$5:$B$342)) -> 0
E330: 実施 | L330: =IF(J330="",NETWORKDAYS(F330,H330,休日設定!$B$5:$B$342),NETWORKDAYS(F330,J330,休日設定!$B$5:$B$342)) -> 0
C335: 関係機関協議（受発注者合同） （※手動入力、日付は初回協議～協議完了） | E335: 計画 | L335: =IF(J335="",NETWORKDAYS(F335,H335,休日設定!$B$5:$B$342),NETWORKDAYS(F335,J335,休日設定!$B$5:$B$342)) -> 0
E340: 実施 | L340: =IF(J340="",NETWORKDAYS(F340,H340,休日設定!$B$5:$B$342),NETWORKDAYS(F340,J340,休日設定!$B$5:$B$342)) -> 0
C345: 工事連携会議（三者会議等） （※手動入力、日付は準備～会議終了） | E345: 計画 | L345: =IF(J345="",NETWORKDAYS(F345,H345,休日設定!$B$5:$B$342),NETWORKDAYS(F345,J345,休日設定!$B$5:$B$342)) -> 0
E350: 実施 | L350: =IF(J350="",NETWORKDAYS(F350,H350,休日設定!$B$5:$B$342),NETWORKDAYS(F350,J350,休日設定!$B$5:$B$342)) -> 0
E355: 計画 | G355: =IF(F355="","",F355) ->  | I355: =IF(H355="","",H355) ->  | K355: =IF(J355="","",J355) ->  | L355: =IF(J355="",NETWORKDAYS(F355,H355,休日設定!$B$5:$B$342),NETWORKDAYS(F355,J355,休日設定!$B$5:$B$342)) -> 0
E360: 実施 | G360: =IF(F360="","",F360) ->  | I360: =IF(H360="","",H360) ->  | K360: =IF(J360="","",J360) ->  | L360: =IF(J360="",NETWORKDAYS(F360,H360,休日設定!$B$5:$B$342),NETWORKDAYS(F360,J360,休日設定!$B$5:$B$342)) -> 0
E365: 計画 | G365: =IF(F365="","",F365) ->  | I365: =IF(H365="","",H365) ->  | K365: =IF(J365="","",J365) ->  | L365: =IF(J365="",NETWORKDAYS(F365,H365,休日設定!$B$5:$B$342),NETWORKDAYS(F365,J365,休日設定!$B$5:$B$342)) -> 0
E370: 実施 | G370: =IF(F370="","",F370) ->  | I370: =IF(H370="","",H370) ->  | K370: =IF(J370="","",J370) ->  | L370: =IF(J370="",NETWORKDAYS(F370,H370,休日設定!$B$5:$B$342),NETWORKDAYS(F370,J370,休日設定!$B$5:$B$342)) -> 0
B376: 作業項目 | CB376: =#REF!+1 ->  | CD376: 月 | CH376: =#REF!+1 ->  | CJ376: 月 | CN376: =#REF!+1 ->  | CP376: 月 | CT376: =#REF!+1 ->  | CV376: 月 | CZ376: =#REF!+1 ->  | DB376: 月 | DF376: =#REF!+1 ->  | DH376: 月 | DL376: =#REF!+1 ->  | DN376: 月 | DR376: =#REF!+1 ->  | DT376: 月 | DX376: =#REF!+1 ->  | DZ376: 月 | ED376: =#REF!+1 ->  | EF376: 月 | EJ376: =#REF!+1 ->  | EL376: 月 | EP376: =#REF!+1 ->  | ER376: 月 | EV376: =#REF!+1 ->  | EX376: 月 | FA376: 備 考
CA377: 上旬 | CC377: 中旬 | CE377: 下旬 | CG377: 上旬 | CI377: 中旬 | CK377: 下旬 | CM377: 上旬 | CO377: 中旬 | CQ377: 下旬 | CS377: 上旬 | CU377: 中旬 | CW377: 下旬 | CY377: 上旬 | DA377: 中旬 | DC377: 下旬 | DE377: 上旬 | DG377: 中旬 | DI377: 下旬 | DK377: 上旬 | DM377: 中旬 | DO377: 下旬 | DQ377: 上旬 | DS377: 中旬 | DU377: 下旬 | DW377: 上旬 | DY377: 中旬 | EA377: 下旬 | EC377: 上旬 | EE377: 中旬 | EG377: 下旬 | EI377: 上旬 | EK377: 中旬 | EM377: 下旬 | EO377: 上旬 | EQ377: 中旬 | ES377: 下旬 | EU377: 上旬 | EW377: 中旬 | EY377: 下旬
CA378: 8 | CC378: 7 | CE378: 7 | CG378: 8 | CI378: 7 | CK378: 7 | CM378: 8 | CO378: 7 | CQ378: 7 | CS378: 8 | CU378: 7 | CW378: 7 | CY378: 8 | DA378: 7 | DC378: 7 | DE378: 8 | DG378: 7 | DI378: 7 | DK378: 8 | DM378: 7 | DO378: 7 | DQ378: 8 | DS378: 7 | DU378: 7 | DW378: 8 | DY378: 7 | EA378: 7 | EC378: 8 | EE378: 7 | EG378: 7 | EI378: 8 | EK378: 7 | EM378: 7 | EO378: 8 | EQ378: 7 | ES378: 7 | EU378: 8 | EW378: 7 | EY378: 7
B379: 発注者 | C379: 基本条件の整理
C380: 既往成果等の貸与 （※手動入力、日付は設計着手～貸与完了） | E380: 計画 | F380: =$X$7 -> 00:00:00 | G380: =IF(F380="","",F380) -> 0 | L380: =IF(J380="",NETWORKDAYS(F380,H380,休日設定!$B$5:$B$342),NETWORKDAYS(F380,J380,休日設定!$B$5:$B$342)) -> 0
E385: 実施 | F385: =$X$7 -> 00:00:00 | G385: =IF(F385="","",F385) -> 0 | L385: =IF(J385="",NETWORKDAYS(F385,H385,休日設定!$B$5:$B$342),NETWORKDAYS(F385,J385,休日設定!$B$5:$B$342)) -> 0
C390: 条件明示チェックシートの貸与 （※手動入力、日付は設計着手～貸与完了） | E390: 計画 | F390: =$X$7 -> 00:00:00 | G390: =IF(F390="","",F390) -> 0 | L390: =IF(J390="",NETWORKDAYS(F390,H390,休日設定!$B$5:$B$342),NETWORKDAYS(F390,J390,休日設定!$B$5:$B$342)) -> 0
E395: 実施 | F395: =$X$7 -> 00:00:00 | G395: =IF(F395="","",F395) -> 0 | L395: =IF(J395="",NETWORKDAYS(F395,H395,休日設定!$B$5:$B$342),NETWORKDAYS(F395,J395,休日設定!$B$5:$B$342)) -> 0
C400: 測量成果の貸与 （※手動入力、日付は設計着手～貸与完了） | E400: 計画 | F400: =$X$7 -> 00:00:00 | G400: =IF(F400="","",F400) -> 0 | L400: =IF(J400="",NETWORKDAYS(F400,H400,休日設定!$B$5:$B$342),NETWORKDAYS(F400,J400,休日設定!$B$5:$B$342)) -> 0
E405: 実施 | F405: =$X$7 -> 00:00:00 | G405: =IF(F405="","",F405) -> 0 | L405: =IF(J405="",NETWORKDAYS(F405,H405,休日設定!$B$5:$B$342),NETWORKDAYS(F405,J405,休日設定!$B$5:$B$342)) -> 0
C410: 地質成果の貸与 （※手動入力、日付は設計着手～貸与完了） | E410: 計画 | F410: =$X$7 -> 00:00:00 | G410: =IF(F410="","",F410) -> 0 | L410: =IF(J410="",NETWORKDAYS(F410,H410,休日設定!$B$5:$B$342),NETWORKDAYS(F410,J410,休日設定!$B$5:$B$342)) -> 0
E415: 実施 | F415: =$X$7 -> 00:00:00 | G415: =IF(F415="","",F415) -> 0 | L415: =IF(J415="",NETWORKDAYS(F415,H415,休日設定!$B$5:$B$342),NETWORKDAYS(F415,J415,休日設定!$B$5:$B$342)) -> 0
C420: 現状の問題・課題整理
C421: 巡視点検結果の貸与 （※手動入力、日付は設計着手～貸与完了） | E421: 計画 | L421: =IF(J421="",NETWORKDAYS(F421,H421,休日設定!$B$5:$B$342),NETWORKDAYS(F421,J421,休日設定!$B$5:$B$342)) -> 0
E426: 実施 | L426: =IF(J426="",NETWORKDAYS(F426,H426,休日設定!$B$5:$B$342),NETWORKDAYS(F426,J426,休日設定!$B$5:$B$342)) -> 0
C431: 関係機関協議（発注者単独）
C432: 協議の実施 （※手動入力、日付は協議開始～協議完了） | E432: 計画 | L432: =IF(J432="",NETWORKDAYS(F432,H432,休日設定!$B$5:$B$342),NETWORKDAYS(F432,J432,休日設定!$B$5:$B$342)) -> 0
E437: 実施 | L437: =IF(J437="",NETWORKDAYS(F437,H437,休日設定!$B$5:$B$342),NETWORKDAYS(F437,J437,休日設定!$B$5:$B$342)) -> 0
C442: 協議結果の提示 （※手動入力、日付は設計着手～結果提示） | E442: 計画 | F442: =$X$7 -> 00:00:00 | G442: =IF(F442="","",F442) -> 0 | L442: =IF(J442="",NETWORKDAYS(F442,H442,休日設定!$B$5:$B$342),NETWORKDAYS(F442,J442,休日設定!$B$5:$B$342)) -> 0
E447: 実施 | F447: =$X$7 -> 00:00:00 | G447: =IF(F447="","",F447) -> 0 | L447: =IF(J447="",NETWORKDAYS(F447,H447,休日設定!$B$5:$B$342),NETWORKDAYS(F447,J447,休日設定!$B$5:$B$342)) -> 0
E452: 計画 | G452: =IF(F452="","",F452) ->  | I452: =IF(H452="","",H452) ->  | K452: =IF(J452="","",J452) ->  | L452: =IF(J452="",NETWORKDAYS(F452,H452,休日設定!$B$5:$B$342),NETWORKDAYS(F452,J452,休日設定!$B$5:$B$342)) -> 0
E457: 実施 | G457: =IF(F457="","",F457) ->  | I457: =IF(H457="","",H457) ->  | K457: =IF(J457="","",J457) ->  | L457: =IF(J457="",NETWORKDAYS(F457,H457,休日設定!$B$5:$B$342),NETWORKDAYS(F457,J457,休日設定!$B$5:$B$342)) -> 0
E462: 計画 | G462: =IF(F462="","",F462) ->  | I462: =IF(H462="","",H462) ->  | K462: =IF(J462="","",J462) ->  | L462: =IF(J462="",NETWORKDAYS(F462,H462,休日設定!$B$5:$B$342),NETWORKDAYS(F462,J462,休日設定!$B$5:$B$342)) -> 0
E467: 実施 | G467: =IF(F467="","",F467) ->  | I467: =IF(H467="","",H467) ->  | K467: =IF(J467="","",J467) ->  | L467: =IF(J467="",NETWORKDAYS(F467,H467,休日設定!$B$5:$B$342),NETWORKDAYS(F467,J467,休日設定!$B$5:$B$342)) -> 0
E472: 計画 | G472: =IF(F472="","",F472) ->  | I472: =IF(H472="","",H472) ->  | K472: =IF(J472="","",J472) ->  | L472: =IF(J472="",NETWORKDAYS(F472,H472,休日設定!$B$5:$B$342),NETWORKDAYS(F472,J472,休日設定!$B$5:$B$342)) -> 0
E477: 実施 | G477: =IF(F477="","",F477) ->  | I477: =IF(H477="","",H477) ->  | K477: =IF(J477="","",J477) ->  | L477: =IF(J477="",NETWORKDAYS(F477,H477,休日設定!$B$5:$B$342),NETWORKDAYS(F477,J477,休日設定!$B$5:$B$342)) -> 0

Sheet 休日設定 (hidden)
B2: （土日以外の積算基準上の休日リスト、土日はExcel関数で考慮）
B3: 2017年～2029年（※毎年確認、祝日法改正等）
B4: 日付 | C4: 曜日 | D4: 名称
B5: 2017-01-01 | C5: =B5 -> 42736 | D5: 元日
B6: 2017-01-02 | C6: =B6 -> 42737 | D6: 振替休日
B7: 2017-01-09 | C7: 42744 | D7: 成人の日
B8: 2017-02-11 | C8: 42777 | D8: 建国記念の日
B9: 2017-03-20 | C9: 42814 | D9: 春分の日
B10: 2017-04-29 | C10: 42854 | D10: 昭和の日
B11: 2017-05-03 | C11: 42858 | D11: 憲法記念日
B12: 2017-05-04 | C12: 42859 | D12: みどりの日
B13: 2017-05-05 | C13: 42860 | D13: こどもの日
B14: 2017-07-17 | C14: 42933 | D14: 海の日
B15: 2017-08-11 | C15: 42958 | D15: 山の日
B16: 2017-08-14 | C16: 42961 | D16: 積算基準より
B17: 2017-08-15 | C17: 42962 | D17: 積算基準より
B18: 2017-08-16 | C18: 42963 | D18: 積算基準より
B19: 2017-09-18 | C19: 42996 | D19: 敬老の日
B20: 2017-09-23 | C20: 43001 | D20: 秋分の日
B21: 2017-10-09 | C21: 43017 | D21: 体育の日
B22: 2017-11-03 | C22: 43042 | D22: 文化の日
B23: 2017-11-23 | C23: 43062 | D23: 勤労感謝の日
B24: 2017-12-23 | C24: 43092 | D24: 天皇誕生日
B25: 2017-12-29 | C25: 43098 | D25: 積算基準より
B26: 2017-12-30 | C26: 43099 | D26: 積算基準より
B27: 2017-12-31 | C27: 43100 | D27: 積算基準より
B28: 2018-01-01 | C28: 43101 | D28: 元日
B29: 2018-01-02 | C29: 43102 | D29: 積算基準より
B30: 2018-01-03 | C30: 43103 | D30: 積算基準より
B31: 2018-01-08 | C31: 43108 | D31: 成人の日
B32: 2018-02-11 | C32: 43142 | D32: 建国記念の日
B33: 2018-02-12 | C33: 43143 | D33: 振替休日
B34: 2018-03-21 | C34: 43180 | D34: 春分の日
B35: 2018-04-29 | C35: 43219 | D35: 昭和の日
B36: 2018-04-30 | C36: 43220 | D36: 振替休日
B37: 2018-05-03 | C37: 43223 | D37: 憲法記念日
B38: 2018-05-04 | C38: 43224 | D38: みどりの日
B39: 2018-05-05 | C39: 43225 | D39: こどもの日
B40: 2018-07-16 | C40: 43297 | D40: 海の日
B41: 2018-08-11 | C41: 43323 | D41: 山の日
B42: 2018-08-14 | C42: 43326 | D42: 積算基準より
B43: 2018-08-15 | C43: 43327 | D43: 積算基準より
B44: 2018-08-16 | C44: 43328 | D44: 積算基準より
B45: 2018-09-17 | C45: 43360 | D45: 敬老の日
B46: 2018-09-23 | C46: 43366 | D46: 秋分の日
B47: 2018-09-24 | C47: 43367 | D47: 振替休日
B48: 2018-10-08 | C48: 43381 | D48: 体育の日
B49: 2018-11-03 | C49: 43407 | D49: 文化の日
B50: 2018-11-23 | C50: 43427 | D50: 勤労感謝の日
B51: 2018-12-23 | C51: 43457 | D51: 天皇誕生日
B52: 2018-12-24 | C52: 43458 | D52: 振替休日
B53: 2018-12-29 | C53: 43463 | D53: 積算基準より
B54: 2018-12-30 | C54: 43464 | D54: 積算基準より
B55: 2018-12-31 | C55: 43465 | D55: 積算基準より
B56: 2019-01-01 | C56: 43466 | D56: 元日
B57: 2019-01-02 | C57: 43467 | D57: 積算基準より
B58: 2019-01-03 | C58: 43468 | D58: 積算基準より
B59: 2019-01-14 | C59: 43479 | D59: 成人の日
B60: 2019-02-11 | C60: 43507 | D60: 建国記念の日
B61: 2019-03-21 | C61: 43545 | D61: 春分の日
B62: 2019-04-29 | C62: 43584 | D62: 昭和の日
B63: 2019-04-30 | C63: =B63 -> 43585 | D63: 国民の休日
B64: 2019-05-01 | C64: =B64 -> 43586 | D64: 天皇の即位の日
B65: 2019-05-02 | C65: 43587 | D65: 国民の休日
B66: 2019-05-03 | C66: 43588 | D66: 憲法記念日
B67: 2019-05-04 | C67: 43589 | D67: みどりの日
B68: 2019-05-05 | C68: 43590 | D68: こどもの日
B69: 2019-05-06 | C69: 43591 | D69: 振替休日
B70: 2019-07-15 | C70: 43661 | D70: 海の日
B71: 2019-08-11 | C71: 43688 | D71: 山の日
B72: 2019-08-12 | C72: 43689 | D72: 振替休日
B73: 2019-08-14 | C73: 43691 | D73: 積算基準より
B74: 2019-08-15 | C74: 43692 | D74: 積算基準より
B75: 2019-08-16 | C75: 43693 | D75: 積算基準より
B76: 2019-09-16 | C76: 43724 | D76: 敬老の日
B77: 2019-09-23 | C77: 43731 | D77: 秋分の日
B78: 2019-10-14 | C78: 43752 | D78: 体育の日
B79: 2019-10-22 | C79: =B79 -> 43760 | D79: 即位礼正殿の儀の行われる日
B80: 2019-11-03 | C80: 43772 | D80: 文化の日
B81: 2019-11-04 | C81: 43773 | D81: 振替休日
B82: 2019-11-23 | C82: 43792 | D82: 勤労感謝の日
B83: 2019-12-29 | C83: 43828 | D83: 積算基準より
B84: 2019-12-30 | C84: 43829 | D84: 積算基準より
B85: 2019-12-31 | C85: 43830 | D85: 積算基準より
B86: 2020-01-01 | C86: =B86 -> 43831 | D86: 元日
B87: 2020-01-02 | C87: 43832 | D87: 積算基準より
B88: 2020-01-03 | C88: 43833 | D88: 積算基準より
B89: 2020-01-13 | C89: 43843 | D89: 成人の日
B90: 2020-02-11 | C90: 43872 | D90: 建国記念の日
B91: 2020-02-23 | C91: 43884 | D91: 天皇誕生日
B92: 2020-02-24 | C92: 43885 | D92: 振替休日
B93: 2020-03-20 | C93: 43910 | D93: 春分の日
B94: 2020-04-29 | C94: 43950 | D94: 昭和の日
B95: 2020-05-03 | C95: 43954 | D95: 憲法記念日
B96: 2020-05-04 | C96: 43955 | D96: みどりの日
B97: 2020-05-05 | C97: 43956 | D97: こどもの日
B98: 2020-05-06 | C98: 43957 | D98: 振替休日
B99: 2020-07-23 | C99: 44035 | D99: 海の日
B100: 2020-07-24 | C100: =B100 -> 44036 | D100: スポーツの日
B101: 2020-08-10 | C101: 44053 | D101: 山の日
B102: 2020-08-14 | C102: 44057 | D102: 積算基準より
B103: 2020-08-15 | C103: 44058 | D103: 積算基準より
B104: 2020-08-16 | C104: 44059 | D104: 積算基準より
B105: 2020-09-21 | C105: 44095 | D105: 敬老の日
B106: 2020-09-22 | C106: 44096 | D106: 秋分の日
B107: 2020-11-03 | C107: 44138 | D107: 文化の日
B108: 2020-11-23 | C108: 44158 | D108: 感謝の日
B109: 2020-12-29 | C109: 44194 | D109: 積算基準より
B110: 2020-12-30 | C110: 44195 | D110: 積算基準より
B111: 2020-12-31 | C111: 44196 | D111: 積算基準より
B112: 2021-01-01 | C112: 44197 | D112: 元日
B113: 2021-01-02 | C113: 44198 | D113: 積算基準より
B114: 2021-01-03 | C114: 44199 | D114: 積算基準より
B115: 2021-01-11 | C115: 44207 | D115: 成人の日
B116: 2021-02-11 | C116: 44238 | D116: 建国記念の日
B117: 2021-02-23 | C117: 44250 | D117: 天皇誕生日
B118: 2021-03-20 | C118: 44275 | D118: 春分の日
B119: 2021-04-29 | C119: 44315 | D119: 昭和の日
B120: 2021-05-03 | C120: 44319 | D120: 憲法記念日
B121: 2021-05-04 | C121: 44320 | D121: みどりの日
B122: 2021-05-05 | C122: 44321 | D122: こどもの日
B123: 2021-07-19 | C123: 44396 | D123: 海の日
B124: 2021-08-11 | C124: 44419 | D124: 山の日
B125: 2021-08-14 | C125: =B125 -> 44422 | D125: 積算基準より
B126: 2021-08-15 | C126: 44423 | D126: 積算基準より
B127: 2021-08-16 | C127: 44424 | D127: 積算基準より
B128: 2021-09-20 | C128: 44459 | D128: 敬老の日
B129: 2021-09-23 | C129: 44462 | D129: 秋分の日
B130: 2021-10-11 | C130: 44480 | D130: スポーツの日
B131: 2021-11-03 | C131: 44503 | D131: 文化の日
B132: 2021-11-23 | C132: 44523 | D132: 感謝の日
B133: 2021-12-29 | C133: =B133 -> 44559 | D133: 積算基準より
B134: 2021-12-30 | C134: 44560 | D134: 積算基準より
B135: 2021-12-31 | C135: 44561 | D135: 積算基準より
B136: 2022-01-01 | C136: 44562 | D136: 元日
B137: 2022-01-02 | C137: 44563 | D137: 積算基準より
B138: 2022-01-03 | C138: 44564 | D138: 積算基準より
B139: 2022-01-10 | C139: 44571 | D139: 成人の日
B140: 2022-02-11 | C140: 44603 | D140: 建国記念の日
B141: 2022-02-23 | C141: 44615 | D141: 天皇誕生日
B142: 2022-03-21 | C142: =B142 -> 44641 | D142: 春分の日
B143: 2022-04-29 | C143: =B143 -> 44680 | D143: 昭和の日
B144: 2022-05-03 | C144: 44684 | D144: 憲法記念日
B145: 2022-05-04 | C145: 44685 | D145: みどりの日
B146: 2022-05-05 | C146: 44686 | D146: こどもの日
B147: 2022-07-18 | C147: 44760 | D147: 海の日
B148: 2022-08-11 | C148: 44784 | D148: 山の日
B149: 2022-08-14 | C149: 44787 | D149: 積算基準より
B150: 2022-08-15 | C150: 44788 | D150: 積算基準より
B151: 2022-08-16 | C151: 44789 | D151: 積算基準より
B152: 2022-09-19 | C152: 44823 | D152: 敬老の日
B153: 2022-09-23 | C153: 44827 | D153: 秋分の日
B154: 2022-10-10 | C154: 44844 | D154: スポーツの日
B155: 2022-11-03 | C155: 44868 | D155: 文化の日
B156: 2022-11-23 | C156: 44888 | D156: 感謝の日
B157: 2022-12-29 | C157: 44924 | D157: 積算基準より
B158: 2022-12-30 | C158: 44925 | D158: 積算基準より
B159: 2022-12-31 | C159: 44926 | D159: 積算基準より
B160: 2023-01-01 | C160: 44927 | D160: 元日
B161: 2023-01-02 | C161: 44928 | D161: 積算基準より
B162: 2023-01-03 | C162: 44929 | D162: 積算基準より
B163: 2023-01-02 | C163: 44928 | D163: 振替休日
B164: 2023-01-09 | C164: 44935 | D164: 成人の日
B165: 2023-02-11 | C165: 44968 | D165: 建国記念の日
B166: 2023-02-23 | C166: 44980 | D166: 天皇誕生日
B167: 2023-03-21 | C167: 45006 | D167: 春分の日
B168: 2023-04-29 | C168: 45045 | D168: 昭和の日
B169: 2023-05-03 | C169: 45049 | D169: 憲法記念日
B170: 2023-05-04 | C170: 45050 | D170: みどりの日
B171: 2023-05-05 | C171: 45051 | D171: こどもの日
B172: 2023-07-17 | C172: 45124 | D172: 海の日
B173: 2023-08-11 | C173: 45149 | D173: 山の日
B174: 2023-08-14 | C174: =B174 -> 45152 | D174: 積算基準より
B175: 2023-08-15 | C175: 45153 | D175: 積算基準より
B176: 2023-08-16 | C176: 45154 | D176: 積算基準より
B177: 2023-09-18 | C177: =B177 -> 45187 | D177: 敬老の日
B178: 2023-09-23 | C178: =B178 -> 45192 | D178: 秋分の日
B179: 2023-10-09 | C179: 45208 | D179: スポーツの日
B180: 2023-11-03 | C180: 45233 | D180: 文化の日
B181: 2023-11-23 | C181: 45253 | D181: 勤労感謝の日
B182: 2023-12-29 | C182: =B182 -> 45289 | D182: 積算基準より
B183: 2023-12-30 | C183: 45290 | D183: 積算基準より
B184: 2023-12-31 | C184: 45291 | D184: 積算基準より
B185: 2024-01-01 | C185: 45292 | D185: 元日
B186: 2024-01-02 | C186: 45293 | D186: 積算基準より
B187: 2024-01-03 | C187: 45294 | D187: 積算基準より
B188: 2024-01-08 | C188: 45299 | D188: 成人の日
B189: 2024-02-11 | C189: 45333 | D189: 建国記念の日
B190: 2024-02-12 | C190: 45334 | D190: 振替休日
B191: 2024-02-23 | C191: 45345 | D191: 天皇誕生日
B192: 2024-03-20 | C192: 45371 | D192: 春分の日
B193: 2024-04-29 | C193: =B193 -> 45411 | D193: 昭和の日
B194: 2024-05-03 | C194: 45415 | D194: 憲法記念日
B195: 2024-05-04 | C195: 45416 | D195: みどりの日
B196: 2024-05-05 | C196: 45417 | D196: こどもの日
B197: 2024-05-06 | C197: 45418 | D197: 振替休日
B198: 2024-07-15 | C198: 45488 | D198: 海の日
B199: 2024-08-11 | C199: 45515 | D199: 山の日
B200: 2024-08-12 | C200: 45516 | D200: 振替休日
B201: 2024-08-14 | C201: 45518 | D201: 積算基準より
... 141 more rows

Sheet 業務遂行管理リスト
B1: 【業務遂行管理リスト】※業務遂行に必要な標準的な作業事項について記載（適宜、修正更新） | AM1: 【設計条件確定までの実施事項】※条件確定までの標準的な確認内容について記載（適宜修正可）
B3: 日付 | D3: 作業事項（タスク） | E3: 作業者 | I3: 期限 | N3: 状況 | AA3: 今後の検討事項･課題･目標 | AM3: 時期 | AP3: 条件確認対象事項 | BA3: 細部項目 | BY3: 状況 | CA3: 備考
E4: 発注者 | G4: 受注者 | AA4: 内 容 | AI4: 予定 | AM4: 【業務計画書作成】業務計画を実施する上での条件明示
B5: 契約書類関係等 | AM5: 着手時確認・確定事項 （設計着手から７日程度） | AP5: 基本的な設計に用いる条件確定 | AS5: 基本条件 | BA5: 暫定計画、交通量、道路規格、線形条件確定
D6: テクリス登録 | AS6: 設計範囲 | BA6: 業務内容、作業範囲
D7: 業務計画書提出 | AS7: 地質調査等 | BA7: 追加調査実施の有無、実施の場合の報告書貸与時期（工程計画に反映）
D8: 業務スケジュール管理表提出 | AS8: 用地境界や測量の確定時期 | BA8: 用地境界の未確定箇所の有無と確定時期、未完の測量の有無と完了時期（工程計画に反映）
D9: 条件明示チェックシート貸与 | AS9: 地域条件 | BA9: 路線統一の有無、類似業務の有無
D10: 照査計画書提出 | AS10: 協議状況 | BA10: 協議先、これまでの協議資料貸与、補償問題の有無とこれまでの協議状況
D11: 再委託承諾申請書提出 | AM11: 【設計条件の整理、条件決定】貸与資料・条件明示資料
D12: 身分証明書の発行 | AM12: 設計条件整理のための事項（設計着手から12日程度） | AP12: 既往成果の確認による設計方針の確定 | AS12: 地質調査・水文条件 | BA12: 土質・地質調査資料の資料貸与
B13: 合同現地踏査 | BA13: 水文関連報告書があれば資料貸与
D14: 実施日程調整 | AS14: 用地条件 | BA14: 測量図貸与、未買収地有無と有の場合に取得状況を示す資料の貸与、未買収の買収時期と施工時期の関係明示
D15: 実施報告書提出
B16: 貸与資料等 | AS16: 予備設計内容 | BA16: 予備設計成果品 貸与
D17: 既往報告書貸与 | AM17: 【合同現地踏査の準備】合同現地踏査に向けた確認事項：コンサル作成資料による確認・決定
D18: 測量成果貸与 | AM18: 第2回打合せ 合同現地踏査準備 （設計着手から30日程度） | AP18: 条件整理結果の確認 | AS18: 設計条件確認 | BA18: 設計条件表による確認・決定
D19: 地質調査成果貸与 | AS19: 業務課題 | BA19: 設計上の課題の確認、対応の協議、追加測試の有無の確認と決定（判断出来次第報告・協議）
B20: 設計変更関係等 | AS20: 地質地盤条件 | BA20: 地質地盤条件整理結果の報告と確認
D21: 設計変更協議 | AS21: 制約条件 | BA21: 未買収用地、環境配慮施設などの報告と確認
D22: 設計変更上申書提出 | AS22: 施工計画 | BA22: 制約条件(施工ヤード、環境配慮施設、交差協議に制約など)
D23: 指示書提示 | AM23: 【合同現地踏査】合同現地踏査による現地確認事項：コンサル作成現地チェックリストによる確認・決定
D24: 契約変更（第1回） | AM24: 合同現地踏査（設計着手から35日程度） | AP24: 現地での条件確認 | AS24: 協議箇所確認 | BA24: 協議対象物の新たな課題の有無確認
D25: 業務計画書（第1回変更）提出 | AS25: 交差、周辺環境確認 | BA25: 交差条件確認、環境配慮施設の確認、追加環境配慮の確認
D26: テクリス変更登録 | AS26: 設計範囲 | BA26: 隣接工区との設計境界を現地で確認
B27: 照査の実施 | AM27: 【条件最終確認】照査結果による条件最終確認事項：コンサル照査報告、コンサル作成条件確認・決定
D28: 第1回照査報告 | AM28: 設計着手から70日程度 | AP28: 最終条件確定 | AS28: 照査結果報告 | BA28: 照査確認し整理された条件確認・決定
D29: 第2回照査報告 | AS29: 予備設計内容変更及び確定 | BA29: 延長、支間割、形式など確認・決定
D30: 第3回照査報告 | AS30: 施工計画基本事項 | BA30: ヤード条件、施工方法、架設工法などの確認・決定
D31: 第4回照査報告 | AS31: 協議確定事項 | BA31: 設計開始に必要な、協議より決定された設計条件の確認、決定
B32: 主要な協議事項
D33: 第1回打合せ（〇○について） | AN33: 【履行期間チェックポイント】
D34: 第2回打合せ（〇○について） | AN34: 項目 | AW34: 残り日数 | BA34: （休日を除く）
D35: 第3回打合せ（〇○について） | AN35: ➀条件確定時期（計画） | AW35: =NETWORKDAYS('業務スケジュール管理表（ver.2.0.0）'!X1,'業務スケジュール管理表（ver.2.0.0）'!H104,休日設定!$B$5:$B$342) -> -31314 | AY35: 日
D36: 第4回打合せ（〇○について） | AN36: ➀条件確定時期（実施） | AW36: =NETWORKDAYS('業務スケジュール管理表（ver.2.0.0）'!X1,'業務スケジュール管理表（ver.2.0.0）'!H109,休日設定!$B$5:$B$342) -> -31314 | AY36: 日
D37: 第5回打合せ（〇○について） | AN37: ②報告書取りまとめ時期（計画） | AW37: =NETWORKDAYS('業務スケジュール管理表（ver.2.0.0）'!X1,'業務スケジュール管理表（ver.2.0.0）'!H274,休日設定!$B$5:$B$342) -> -31314 | AY37: 日
B38: 成果の納品等 | AN38: ②報告書取りまとめ時期（実施） | AW38: =NETWORKDAYS('業務スケジュール管理表（ver.2.0.0）'!X1,'業務スケジュール管理表（ver.2.0.0）'!H279,休日設定!$B$5:$B$342) -> -31314 | AY38: 日
D39: 業務報告書の納品 | AN39: ③成果照査時期（計画） | AW39: =NETWORKDAYS('業務スケジュール管理表（ver.2.0.0）'!X1,'業務スケジュール管理表（ver.2.0.0）'!H284,休日設定!$B$5:$B$342) -> -31314 | AY39: 日
D40: 業務スケジュール管理表の納品 | AN40: ③成果照査時期（実施） | AW40: =NETWORKDAYS('業務スケジュール管理表（ver.2.0.0）'!X1,'業務スケジュール管理表（ver.2.0.0）'!H289,休日設定!$B$5:$B$342) -> -31314 | AY40: 日
AN41: 適宜設定 | AY41: 日
B42: その他 | AN42: 適宜設定 | AY42: 日
CC46: 2019.2.Ver

Sheet (編集不可)教師データ (hidden)
B1: 【履行期間：ハイライト教師データ】 | F1: 使用しない
B2: 1,000万未満 | C2: ➀条件確定まで | F2: ②報告書作成期間 | I2: ③報告書作成とりまとめ | L2: 履行期間（照査完了・納品）
C3: 平均 | D3: 範囲帯（下限） | E3: 範囲帯（上限） | F3: 平均 | G3: 範囲帯（下限） | H3: 範囲帯（上限） | I3: 平均 | J3: 範囲帯（下限） | K3: 範囲帯（上限） | L3: 平均 | M3: 範囲帯（下限） | N3: 範囲帯（上限）
A4: リスト⇒ | B4: 道路橋設計（詳細設計） | C4: 83.72782383 | D4: 68.50490185 | E4: 98.9507458 | F4: =AVERAGE(G4:H4) -> 60.85990743 | G4: 41.19638665 | H4: 80.5234282 | I4: =AVERAGE(J4:K4) -> 11 | J4: 3.24992573 | K4: 18.75007427 | L4: 179.4662431 | M4: 152.6369117 | N4: 206.2955745
A5: リスト⇒ | B5: 道路設計（詳細設計） | C5: 79 | D5: 59.0492542 | E5: 98.9507458 | F5: 79.57304142 | G5: 68.62265465 | H5: 90.5234282 | I5: 9 | J5: 1.938997365 | K5: 16.06100264 | L5: 187.292105 | M5: 168.2886354 | N5: 206.2955745
A6: リスト⇒ | B6: トンネル設計（詳細設計） | C6: 82.1998067 | D6: 65.4488676 | E6: 98.9507458 | F6: 58.09380468 | G6: 45.66418115 | H6: 70.5234282 | I6: 9.806702543 | J6: 3.55240245 | K6: 16.06100264 | L6: 171.5841504 | M6: 146.8727264 | N6: 206.2955745
A7: リスト⇒ | B7: 河川構造物設計（詳細設計） | C7: 89.20742675 | D7: 79.4641077 | E7: 98.9507458 | F7: 49.15550337 | G7: 42.78757855 | H7: 55.5234282 | I7: 9 | J7: 1.938997365 | K7: 16.06100264 | L7: 172.5102593 | M7: 138.7249441 | N7: 206.2955745
A8: リスト⇒ | B8: 砂防構造物設計（詳細設計） | C8: 88.24639247 | D8: 77.54203915 | E8: 98.9507458 | F8: 63.5185807 | G8: 46.5137332 | H8: 80.5234282 | I8: 9.655464183 | J8: 3.24992573 | K8: 16.06100264 | L8: 185.3461496 | M8: 164.3967248 | N8: 206.2955745
A9: リスト⇒ | B9: その他設計（詳細設計） | C9: 80.97327247 | D9: 62.99579915 | E9: 98.9507458 | F9: 70.38206483 | G9: 50.24070145 | H9: 90.5234282 | I9: 9 | J9: 1.938997365 | K9: 16.06100264 | L9: 190.8008384 | M9: 175.3061023 | N9: 206.2955745
A10: リスト⇒ | B10: その他業務
B11: 1,000万～2,000万 | C11: ➀条件確定まで | F11: ②報告書作成期間 | I11: ③報告書作成とりまとめ | L11: 履行期間（照査完了・納品）
C12: 平均 | D12: 範囲帯（下限） | E12: 範囲帯（上限） | F12: 平均 | G12: 範囲帯（下限） | H12: 範囲帯（上限） | I12: 平均 | J12: 範囲帯（下限） | K12: 範囲帯（上限） | L12: 平均 | M12: 範囲帯（下限） | N12: 範囲帯（上限）
B13: 道路橋設計（詳細設計） | C13: 94.35763223 | D13: 68.50490185 | E13: 120.2103626 | F13: =AVERAGE(G13:H13) -> 104.6904768 | G13: 81.19638665 | H13: 128.184567 | I13: =AVERAGE(J13:K13) -> 11.06373497 | J13: 6.3842287 | K13: 15.74324125 | L13: 216.7604965 | M13: 202.6369117 | N13: 230.8840814
B14: 道路設計（詳細設計） | C14: 92 | D14: 63.7896374 | E14: 120.2103626 | F14: 113.4036108 | G14: 98.62265465 | H14: 128.184567 | I14: 9 | J14: 2.25675875 | K14: 15.74324125 | L14: 224.5863584 | M14: 218.2886355 | N14: 230.8840814
B15: トンネル設計（詳細設計） | C15: 88 | D15: 65.4488676 | E15: 110.5511324 | F15: 94.07562592 | G15: 71.815433 | H15: 116.3358188 | I15: 11.14782185 | J15: 5.55240245 | K15: 16.74324125 | L15: 207 | M15: 186.8727264 | N15: 227.1272736
B16: 河川構造物設計（詳細設計） | C16: 99.83723515 | D16: 79.4641077 | E16: 120.2103626 | F16: 97.98607277 | G16: 77.78757855 | H16: 118.184567 | I16: 7.5 | J16: 2.25675875 | K16: 12.74324125 | L16: 214.8045128 | M16: 198.7249441 | N16: 230.8840814
B17: 砂防構造物設計（詳細設計） | C17: 98.87620087 | D17: 77.54203915 | E17: 120.2103626 | F17: 90 | G17: 71.815433 | H17: 108.184567 | I17: 9.5 | J17: 3.24992573 | K17: 15.75007427 | L17: 212.6404031 | M17: 194.3967248 | N17: 230.8840814
B18: その他設計（詳細設計） | C18: 90.39691913 | D18: 63.7896374 | E18: 117.0042009 | F18: 85.5 | G18: 66.815433 | H18: 104.184567 | I18: 9.505675125 | J18: 3.268109 | K18: 15.74324125 | L18: 205 | M18: 179.1159186 | N18: 230.8840814
B20: 2,000万～3,000万 | C20: ➀条件確定まで | F20: ②報告書作成期間 | I20: ③報告書作成とりまとめ | L20: 履行期間（照査完了・納品）
C21: 平均 | D21: 範囲帯（下限） | E21: 範囲帯（上限） | F21: 平均 | G21: 範囲帯（下限） | H21: 範囲帯（上限） | I21: 平均 | J21: 範囲帯（下限） | K21: 範囲帯（上限） | L21: 平均 | M21: 範囲帯（下限） | N21: 範囲帯（上限）
B22: 道路橋設計（詳細設計） | C22: 96 | D22: 68.50490185 | E22: 123.4950982 | F22: =AVERAGE(G22:H22) -> 101.4311931 | G22: 84.05877295 | H22: 118.8036134 | I22: 13.4227996 | J22: 6.3842287 | K22: 20.4613705 | L22: =AVERAGE(M22:N22) -> 230 | M22: 202.6369117 | N22: 257.3630883
B23: 道路設計（詳細設計） | C23: 97.70619708 | D23: 67.3545216 | E23: 128.0578726 | F23: 121.2819409 | G23: 98.62265465 | H23: 143.9412271 | I23: 10 | J23: 0 | K23: 20.4613705 | L23: 242.2152027 | M23: 218.2886355 | N23: 266.14177
B24: トンネル設計（詳細設計） | C24: 88.952827 | D24: 67.3545216 | E24: 110.5511324 | F24: 100.1972959 | G24: 74.05877295 | H24: 126.3358188 | I24: 14.50688648 | J24: 8.55240245 | K24: 20.4613705 | L24: 214.4927518 | M24: 201.8582301 | N24: 227.1272736
B25: 河川構造物設計（詳細設計） | C25: 104.0547931 | D25: 79.4641077 | E25: 128.6454784 | F25: 99.1355972 | G25: 74.05877295 | H25: 124.2124214 | I25: 9 | J25: 0.20345625 | K25: 17.79654375 | L25: 243.566643 | M25: 221.8582301 | N25: 265.2750559
B26: 砂防構造物設計（詳細設計） | C26: 103.0937588 | D26: 77.54203915 | E26: 128.6454784 | F26: 101.2725199 | G26: 69.05877295 | H26: 133.4862668 | I26: 6 | J26: 3.24992573 | K26: 13.75007427 | L26: 227.7307526 | M26: 211.8582301 | N26: 243.6032752
B27: その他設計（詳細設計） | C27: 92.17936123 | D27: 67.3545216 | E27: 117.0042009 | F27: 106.9090358 | G27: 84.05877295 | H27: 129.7592986 | I27: 10 | J27: 1.268109 | K27: 18.731891 | L27: 218.2760639 | M27: 201.8582301 | N27: 234.6938977
B29: 3,000万～4,000万 | C29: ➀条件確定まで | F29: ②報告書作成期間 | I29: ③報告書作成とりまとめ | L29: 履行期間（照査完了・納品）
C30: 平均 | D30: 範囲帯（下限） | E30: 範囲帯（上限） | F30: 平均 | G30: 範囲帯（下限） | H30: 範囲帯（上限） | I30: 平均 | J30: 範囲帯（下限） | K30: 範囲帯（上限） | L30: 平均 | M30: 範囲帯（下限） | N30: 範囲帯（上限）
B31: 道路橋設計（詳細設計） | C31: 96 | D31: 68.50490185 | E31: 123.4950982 | F31: =AVERAGE(G31:H31) -> 115.9920565 | G31: 93.18049965 | H31: 138.8036134 | I31: =AVERAGE(J31:K31) -> 17 | J31: 6.3842287 | K31: 27.6157713 | L31: =AVERAGE(M31:N31) -> 241.3604995 | M31: 225.3579107 | N31: 257.3630883
B32: 道路設計（詳細設計） | C32: 97.8730809 | D32: 67.68828925 | E32: 128.0578726 | F32: 125.7210775 | G32: 94.62265465 | H32: 156.8195003 | I32: 15.32333553 | J32: 2 | K32: 28.64667105 | L32: 251 | M32: 225.3579107 | N32: 276.6420893
B33: トンネル設計（詳細設計） | C33: 89.11971082 | D33: 67.68828925 | E33: 110.5511324 | F33: 109.7581593 | G33: 93.18049965 | H33: 126.3358188 | I33: 17 | J33: 8.55240245 | K33: 25.44759755 | L33: 233.7425921 | M33: 225.3579107 | N33: 242.1272736
B34: 河川構造物設計（詳細設計） | C34: 108.8879092 | D34: 79.4641077 | E34: 138.3117108 | F34: 113.6964605 | G34: 93.18049965 | H34: 134.2124214 | I34: 10 | J34: 2.20345625 | K34: 17.79654375 | L34: 245.3164833 | M34: 225.3579107 | N34: 265.2750559
B35: 砂防構造物設計（詳細設計） | C35: 104 | D35: 77.54203915 | E35: 130.4579609 | F35: 113.3333832 | G35: 93.18049965 | H35: 133.4862668 | I35: 8 | J35: 3.24992573 | K35: 12.75007427 | L35: 236.4805929 | M35: 225.3579107 | N35: 247.6032752
B36: その他設計（詳細設計） | C36: 92.34624505 | D36: 67.68828925 | E36: 117.0042009 | F36: 111.4698991 | G36: 93.18049965 | H36: 129.7592986 | I36: 10.5 | J36: 2.268109 | K36: 18.731891 | L36: 230.0259042 | M36: 225.3579107 | N36: 234.6938977
B38: 4,000万～5,000万 | C38: ➀条件確定まで | F38: ②報告書作成期間 | I38: ③報告書作成とりまとめ | L38: 履行期間（照査完了・納品）
C39: 平均 | D39: 範囲帯（下限） | E39: 範囲帯（上限） | F39: 平均 | G39: 範囲帯（下限） | H39: 範囲帯（上限） | I39: 平均 | J39: 範囲帯（下限） | K39: 範囲帯（上限） | L39: 平均 | M39: 範囲帯（下限） | N39: 範囲帯（上限）
B40: 道路橋設計（詳細設計） | C40: 96 | D40: 68.50490185 | E40: 123.4950982 | F40: =AVERAGE(G40:H40) -> 114.9763837 | G40: 91.14915415 | H40: 138.8036134 | I40: 17 | J40: 6.3842287 | K40: 27.6157713 | L40: 238.9493887 | M40: 220.535689 | N40: 257.3630883
B41: 道路設計（詳細設計） | C41: 92 | D41: 59.33897595 | E41: 124.6610241 | F41: 122.2367503 | G41: 88.62265465 | H41: 155.8508459 | I41: 15.11007013 | J41: 1.5734692 | K41: 28.64667105 | L41: 243 | M41: 220.535689 | N41: 265.464311
B42: トンネル設計（詳細設計） | C42: 88 | D42: 65.4488676 | E42: 110.5511324 | F42: 108.7424865 | G42: 91.14915415 | H42: 126.3358188 | I42: 17 | J42: 8.55240245 | K42: 25.44759755 | L42: 223.8314813 | M42: 220.535689 | N42: 237.1272736
B43: 河川構造物設計（詳細設計） | C43: 102.0625659 | D43: 79.4641077 | E43: 124.6610241 | F43: 112.6807878 | G43: 91.14915415 | H43: 134.2124214 | I43: 9.685006475 | J43: 1.5734692 | K43: 17.79654375 | L43: 242.9053724 | M43: 220.535689 | N43: 265.2750559
B44: 砂防構造物設計（詳細設計） | C44: 101.1015316 | D44: 77.54203915 | E44: 124.6610241 | F44: 112.3177105 | G44: 91.14915415 | H44: 133.4862668 | I44: 6 | J44: 3.24992573 | K44: 13.75007427 | L44: 227.0694821 | M44: 220.535689 | N44: 243.6032752
B45: その他設計（詳細設計） | C45: 90 | D45: 62.99579915 | E45: 117.0042009 | F45: 110.4542263 | G45: 91.14915415 | H45: 129.7592986 | I45: 10.1526801 | J45: 1.5734692 | K45: 18.731891 | L45: 227.6147934 | M45: 220.535689 | N45: 234.6938977
B47: 5,000万以上 | C47: ➀条件確定まで | F47: ②報告書作成期間 | I47: ③報告書作成とりまとめ | L47: 履行期間（照査完了・納品）
C48: 平均 | D48: 範囲帯（下限） | E48: 範囲帯（上限） | F48: 平均 | G48: 範囲帯（下限） | H48: 範囲帯（上限） | I48: 平均 | J48: 範囲帯（下限） | K48: 範囲帯（上限） | L48: 平均 | M48: 範囲帯（下限） | N48: 範囲帯（上限）
B49: 道路橋設計（詳細設計） | C49: 104.3964536 | D49: 85.2978091 | E49: 123.4950982 | F49: =AVERAGE(G49:H49) -> 114.2136225 | G49: 89.62363155 | H49: 138.8036134 | I49: 16 | J49: 8.0551511 | K49: 23.9448489 | L49: 246.2492873 | M49: 235.1354862 | N49: 257.3630883
B50: 道路設計（詳細設計） | C50: 106.6778408 | D50: 85.2978091 | E50: 128.0578726 | F50: 121.9995115 | G50: 93.62265465 | H50: 150.3763685 | I50: 16 | J50: 8.0551511 | K50: 23.9448489 | L50: 257.4234254 | M50: 235.1354862 | N50: 279.7113645
B51: トンネル設計（詳細設計） | C51: 97.92447075 | D51: 85.2978091 | E51: 110.5511324 | F51: 107.9797252 | G51: 89.62363155 | H51: 126.3358188 | I51: 16.24862567 | J51: 8.55240245 | K51: 23.9448489 | L51: 246.1313799 | M51: 227.1272736 | N51: 265.1354862
B52: 河川構造物設計（詳細設計） | C52: 115.9168507 | D52: 85.2978091 | E52: 146.5358923 | F52: 111.9180265 | G52: 89.62363155 | H52: 134.2124214 | I52: 12.92584742 | J52: 8.0551511 | K52: 17.79654375 | L52: 250.205271 | M52: 235.1354862 | N52: 265.2750559
B53: 砂防構造物設計（詳細設計） | C53: 107.877885 | D53: 85.2978091 | E53: 130.4579609 | F53: 107.0549492 | G53: 83.62363155 | H53: 130.4862668 | I53: 8.402612685 | J53: 6.0551511 | K53: 14.75007427 | L53: 231.8693807 | M53: 220.1354863 | N53: 243.6032752
B54: その他設計（詳細設計） | C54: 101.151005 | D54: 85.2978091 | E54: 117.0042009 | F54: 109.6914651 | G54: 89.62363155 | H54: 129.7592986 | I54: 13.39352105 | J54: 8.0551511 | K54: 18.731891 | L54: 234.914692 | M54: 225.1354863 | N54: 244.6938977
B56: 1 | C56: 2 | D56: 3 | E56: 4 | F56: 5 | G56: 6 | H56: 7 | I56: 8 | J56: 9 | K56: 10 | L56: 11 | M56: 12 | N56: 13
C57: 平均 | D57: 範囲帯（下限） | E57: 範囲帯（上限） | F57: 平均 | G57: 範囲帯（下限） | H57: 範囲帯（上限） | I57: 平均 | J57: 範囲帯（下限） | K57: 範囲帯（上限） | L57: 平均 | M57: 範囲帯（下限） | N57: 範囲帯（上限）
C58: =AVERAGE(D58:E58) ->  | D58: =IF('業務スケジュール管理表（ver.2.0.0）'!$X$5="手動","",IF('業務スケジュール管理表（ver.2.0.0）'!$G$4<10000000,VLOOKUP('業務スケジュール管理表（ver.2.0.0）'!$G$5,$B$4:$N$9,D$56,FALSE),IF(AND('業務スケジュール管理表（ver.2.0.0）'!$G$4>=10000000,'業務スケジュール管理表（ver.2.0.0）'!$G$4<20000000),VLOOKUP('業務スケジュール管理表（ver.2.0.0）'!$G$5,$B$13:$N$18,D$56,FALSE),IF(AND('業務スケジュール管理表（ver.2.0.0）'!$G$4>=20000000,'業務スケジュール管理表（ver.2.0.0）'!$G$4<30000000),VLOOKUP('業務スケジュール管理表（ver.2.0.0）'!$G$5,$B$22:$N$27,D$56,FALSE),IF(AND('業務スケジュール管理表（ver.2.0.0）'!$G$4>=30000000,'業務スケジュール管理表（ver.2.0.0）'!$G$4<40000000),VLOOKUP('業務スケジュール管理表（ver.2.0.0）'!$G$5,$B$31:$N$36,D$56,FALSE),IF(AND('業務スケジュール管理表（ver.2.0.0）'!$G$4>=40000000,'業務スケジュール管理表（ver.2.0.0）'!$G$4<50000000),VLOOKUP('業務スケジュール管理表（ver.2.0.0）'!$G$5,$B$40:$N$45,D$56,FALSE),IF('業務スケジュール管理表（ver.2.0.0）'!$G$4>50000000,VLOOKUP('業務スケジュール管理表（ver.2.0.0）'!$G$5,$B$49:$N$54,D$56,FALSE),""))))))) ->  | E58: =IF('業務スケジュール管理表（ver.2.0.0）'!$X$5="手動","",IF('業務スケジュール管理表（ver.2.0.0）'!$G$4<10000000,VLOOKUP('業務スケジュール管理表（ver.2.0.0）'!$G$5,$B$4:$N$9,E$56,FALSE),IF(AND('業務スケジュール管理表（ver.2.0.0）'!$G$4>=10000000,'業務スケジュール管理表（ver.2.0.0）'!$G$4<20000000),VLOOKUP('業務スケジュール管理表（ver.2.0.0）'!$G$5,$B$13:$N$18,E$56,FALSE),IF(AND('業務スケジュール管理表（ver.2.0.0）'!$G$4>=20000000,'業務スケジュール管理表（ver.2.0.0）'!$G$4<30000000),VLOOKUP('業務スケジュール管理表（ver.2.0.0）'!$G$5,$B$22:$N$27,E$56,FALSE),IF(AND('業務スケジュール管理表（ver.2.0.0）'!$G$4>=30000000,'業務スケジュール管理表（ver.2.0.0）'!$G$4<40000000),VLOOKUP('業務スケジュール管理表（ver.2.0.0）'!$G$5,$B$31:$N$36,E$56,FALSE),IF(AND('業務スケジュール管理表（ver.2.0.0）'!$G$4>=40000000,'業務スケジュール管理表（ver.2.0.0）'!$G$4<50000000),VLOOKUP('業務スケジュール管理表（ver.2.0.0）'!$G$5,$B$40:$N$45,E$56,FALSE),IF('業務スケジュール管理表（ver.2.0.0）'!$G$4>50000000,VLOOKUP('業務スケジュール管理表（ver.2.0.0）'!$G$5,$B$49:$N$54,E$56,FALSE),""))))))) ->  | F58: =AVERAGE(G58:H58) ->  | G58: =C$58+G59 ->  | H58: =C$58+H59 ->  | I58: =AVERAGE(J58:K58) ->  | J58: =F$58+J59 ->  | K58: =F$58+K59 ->  | L58: =AVERAGE(M58:N58) ->  | M58: =IF('業務スケジュール管理表（ver.2.0.0）'!$X$5="手動","",IF('業務スケジュール管理表（ver.2.0.0）'!$G$4<10000000,VLOOKUP('業務スケジュール管理表（ver.2.0.0）'!$G$5,$B$4:$N$9,M$56,FALSE),IF(AND('業務スケジュール管理表（ver.2.0.0）'!$G$4>=10000000,'業務スケジュール管理表（ver.2.0.0）'!$G$4<20000000),VLOOKUP('業務スケジュール管理表（ver.2.0.0）'!$G$5,$B$13:$N$18,M$56,FALSE),IF(AND('業務スケジュール管理表（ver.2.0.0）'!$G$4>=20000000,'業務スケジュール管理表（ver.2.0.0）'!$G$4<30000000),VLOOKUP('業務スケジュール管理表（ver.2.0.0）'!$G$5,$B$22:$N$27,M$56,FALSE),IF(AND('業務スケジュール管理表（ver.2.0.0）'!$G$4>=30000000,'業務スケジュール管理表（ver.2.0.0）'!$G$4<40000000),VLOOKUP('業務スケジュール管理表（ver.2.0.0）'!$G$5,$B$31:$N$36,M$56,FALSE),IF(AND('業務スケジュール管理表（ver.2.0.0）'!$G$4>=40000000,'業務スケジュール管理表（ver.2.0.0）'!$G$4<50000000),VLOOKUP('業務スケジュール管理表（ver.2.0.0）'!$G$5,$B$40:$N$45,M$56,FALSE),IF('業務スケジュール管理表（ver.2.0.0）'!$G$4>50000000,VLOOKUP('業務スケジュール管理表（ver.2.0.0）'!$G$5,$B$49:$N$54,M$56,FALSE),""))))))) ->  | N58: =IF('業務スケジュール管理表（ver.2.0.0）'!$X$5="手動","",IF('業務スケジュール管理表（ver.2.0.0）'!$G$4<10000000,VLOOKUP('業務スケジュール管理表（ver.2.0.0）'!$G$5,$B$4:$N$9,N$56,FALSE),IF(AND('業務スケジュール管理表（ver.2.0.0）'!$G$4>=10000000,'業務スケジュール管理表（ver.2.0.0）'!$G$4<20000000),VLOOKUP('業務スケジュール管理表（ver.2.0.0）'!$G$5,$B$13:$N$18,N$56,FALSE),IF(AND('業務スケジュール管理表（ver.2.0.0）'!$G$4>=20000000,'業務スケジュール管理表（ver.2.0.0）'!$G$4<30000000),VLOOKUP('業務スケジュール管理表（ver.2.0.0）'!$G$5,$B$22:$N$27,N$56,FALSE),IF(AND('業務スケジュール管理表（ver.2.0.0）'!$G$4>=30000000,'業務スケジュール管理表（ver.2.0.0）'!$G$4<40000000),VLOOKUP('業務スケジュール管理表（ver.2.0.0）'!$G$5,$B$31:$N$36,N$56,FALSE),IF(AND('業務スケジュール管理表（ver.2.0.0）'!$G$4>=40000000,'業務スケジュール管理表（ver.2.0.0）'!$G$4<50000000),VLOOKUP('業務スケジュール管理表（ver.2.0.0）'!$G$5,$B$40:$N$45,N$56,FALSE),IF('業務スケジュール管理表（ver.2.0.0）'!$G$4>50000000,VLOOKUP('業務スケジュール管理表（ver.2.0.0）'!$G$5,$B$49:$N$54,N$56,FALSE),""))))))) -> 
G59: =IF('業務スケジュール管理表（ver.2.0.0）'!$X$5="手動","",IF('業務スケジュール管理表（ver.2.0.0）'!$G$4<10000000,VLOOKUP('業務スケジュール管理表（ver.2.0.0）'!$G$5,$B$4:$N$9,G$56,FALSE),IF(AND('業務スケジュール管理表（ver.2.0.0）'!$G$4>=10000000,'業務スケジュール管理表（ver.2.0.0）'!$G$4<20000000),VLOOKUP('業務スケジュール管理表（ver.2.0.0）'!$G$5,$B$13:$N$18,G$56,FALSE),IF(AND('業務スケジュール管理表（ver.2.0.0）'!$G$4>=20000000,'業務スケジュール管理表（ver.2.0.0）'!$G$4<30000000),VLOOKUP('業務スケジュール管理表（ver.2.0.0）'!$G$5,$B$22:$N$27,G$56,FALSE),IF(AND('業務スケジュール管理表（ver.2.0.0）'!$G$4>=30000000,'業務スケジュール管理表（ver.2.0.0）'!$G$4<40000000),VLOOKUP('業務スケジュール管理表（ver.2.0.0）'!$G$5,$B$31:$N$36,G$56,FALSE),IF(AND('業務スケジュール管理表（ver.2.0.0）'!$G$4>=40000000,'業務スケジュール管理表（ver.2.0.0）'!$G$4<50000000),VLOOKUP('業務スケジュール管理表（ver.2.0.0）'!$G$5,$B$40:$N$45,G$56,FALSE),IF('業務スケジュール管理表（ver.2.0.0）'!$G$4>50000000,VLOOKUP('業務スケジュール管理表（ver.2.0.0）'!$G$5,$B$49:$N$54,G$56,FALSE),""))))))) ->  | H59: =IF('業務スケジュール管理表（ver.2.0.0）'!$X$5="手動","",IF('業務スケジュール管理表（ver.2.0.0）'!$G$4<10000000,VLOOKUP('業務スケジュール管理表（ver.2.0.0）'!$G$5,$B$4:$N$9,H$56,FALSE),IF(AND('業務スケジュール管理表（ver.2.0.0）'!$G$4>=10000000,'業務スケジュール管理表（ver.2.0.0）'!$G$4<20000000),VLOOKUP('業務スケジュール管理表（ver.2.0.0）'!$G$5,$B$13:$N$18,H$56,FALSE),IF(AND('業務スケジュール管理表（ver.2.0.0）'!$G$4>=20000000,'業務スケジュール管理表（ver.2.0.0）'!$G$4<30000000),VLOOKUP('業務スケジュール管理表（ver.2.0.0）'!$G$5,$B$22:$N$27,H$56,FALSE),IF(AND('業務スケジュール管理表（ver.2.0.0）'!$G$4>=30000000,'業務スケジュール管理表（ver.2.0.0）'!$G$4<40000000),VLOOKUP('業務スケジュール管理表（ver.2.0.0）'!$G$5,$B$31:$N$36,H$56,FALSE),IF(AND('業務スケジュール管理表（ver.2.0.0）'!$G$4>=40000000,'業務スケジュール管理表（ver.2.0.0）'!$G$4<50000000),VLOOKUP('業務スケジュール管理表（ver.2.0.0）'!$G$5,$B$40:$N$45,H$56,FALSE),IF('業務スケジュール管理表（ver.2.0.0）'!$G$4>50000000,VLOOKUP('業務スケジュール管理表（ver.2.0.0）'!$G$5,$B$49:$N$54,H$56,FALSE),""))))))) ->  | J59: =IF('業務スケジュール管理表（ver.2.0.0）'!$X$5="手動","",IF('業務スケジュール管理表（ver.2.0.0）'!$G$4<10000000,VLOOKUP('業務スケジュール管理表（ver.2.0.0）'!$G$5,$B$4:$N$9,J$56,FALSE),IF(AND('業務スケジュール管理表（ver.2.0.0）'!$G$4>=10000000,'業務スケジュール管理表（ver.2.0.0）'!$G$4<20000000),VLOOKUP('業務スケジュール管理表（ver.2.0.0）'!$G$5,$B$13:$N$18,J$56,FALSE),IF(AND('業務スケジュール管理表（ver.2.0.0）'!$G$4>=20000000,'業務スケジュール管理表（ver.2.0.0）'!$G$4<30000000),VLOOKUP('業務スケジュール管理表（ver.2.0.0）'!$G$5,$B$22:$N$27,J$56,FALSE),IF(AND('業務スケジュール管理表（ver.2.0.0）'!$G$4>=30000000,'業務スケジュール管理表（ver.2.0.0）'!$G$4<40000000),VLOOKUP('業務スケジュール管理表（ver.2.0.0）'!$G$5,$B$31:$N$36,J$56,FALSE),IF(AND('業務スケジュール管理表（ver.2.0.0）'!$G$4>=40000000,'業務スケジュール管理表（ver.2.0.0）'!$G$4<50000000),VLOOKUP('業務スケジュール管理表（ver.2.0.0）'!$G$5,$B$40:$N$45,J$56,FALSE),IF('業務スケジュール管理表（ver.2.0.0）'!$G$4>50000000,VLOOKUP('業務スケジュール管理表（ver.2.0.0）'!$G$5,$B$49:$N$54,J$56,FALSE),""))))))) ->  | K59: =IF('業務スケジュール管理表（ver.2.0.0）'!$X$5="手動","",IF('業務スケジュール管理表（ver.2.0.0）'!$G$4<10000000,VLOOKUP('業務スケジュール管理表（ver.2.0.0）'!$G$5,$B$4:$N$9,K$56,FALSE),IF(AND('業務スケジュール管理表（ver.2.0.0）'!$G$4>=10000000,'業務スケジュール管理表（ver.2.0.0）'!$G$4<20000000),VLOOKUP('業務スケジュール管理表（ver.2.0.0）'!$G$5,$B$13:$N$18,K$56,FALSE),IF(AND('業務スケジュール管理表（ver.2.0.0）'!$G$4>=20000000,'業務スケジュール管理表（ver.2.0.0）'!$G$4<30000000),VLOOKUP('業務スケジュール管理表（ver.2.0.0）'!$G$5,$B$22:$N$27,K$56,FALSE),IF(AND('業務スケジュール管理表（ver.2.0.0）'!$G$4>=30000000,'業務スケジュール管理表（ver.2.0.0）'!$G$4<40000000),VLOOKUP('業務スケジュール管理表（ver.2.0.0）'!$G$5,$B$31:$N$36,K$56,FALSE),IF(AND('業務スケジュール管理表（ver.2.0.0）'!$G$4>=40000000,'業務スケジュール管理表（ver.2.0.0）'!$G$4<50000000),VLOOKUP('業務スケジュール管理表（ver.2.0.0）'!$G$5,$B$40:$N$45,K$56,FALSE),IF('業務スケジュール管理表（ver.2.0.0）'!$G$4>50000000,VLOOKUP('業務スケジュール管理表（ver.2.0.0）'!$G$5,$B$49:$N$54,K$56,FALSE),""))))))) -> 

Sheet List (hidden)
A1: 区分 | B1: 大項目 | D1: 小項目 | G1: =VLOOKUP('業務スケジュール管理表（ver.2.0.0）'!G5,G4:H10,2,FALSE) ->  | J1: 道路橋設計 | K1: 道路設計 | L1: トンネル設計 | M1: 河川構造物設計 | N1: 砂防構造物設計 | O1: その他設計 | P1: その他業務
B2: 項目名 | C2: レベル | D2: 項目名 | E2: レベル | J2: ｺﾝｸﾘｰﾄ上部工 | K2: 道路詳細設計（Ａ）予備設計あり | L2: 本体工 | M2: 樋門 | N2: 砂防堰堤
A3: 道路橋設計（詳細設計） | B3: ｺﾝｸﾘｰﾄ上部工 | C3: 3 | G3: 工種 | H3: 工種（入力規則用） | J3: 鋼橋上部工 | K3: 道路詳細設計（Ｂ）予備設計なし | L3: 坑門工 | M3: 河川排水機場 | N3: 流木対策工
B4: 鋼橋上部工 | C4: 3 | G4: 道路橋設計（詳細設計） | H4: 道路橋設計 | J4: 橋台工 | L4: 防水工 | M4: 護岸 | N4: 渓流保全工
B5: 橋台工 | C5: 3 | G5: 道路設計（詳細設計） | H5: 道路設計 | J5: 橋脚工 | L5: 排水工
B6: 橋脚工 | C6: 3 | G6: トンネル設計（詳細設計） | H6: トンネル設計 | J6: 橋台基礎工 | L6: 舗装工
B7: 橋台基礎工 | C7: 3 | G7: 河川構造物設計（詳細設計） | H7: 河川構造物設計 | J7: 橋脚基礎工 | L7: 非常用施設
B8: 橋脚基礎工 | C8: 3 | G8: 砂防構造物設計（詳細設計） | H8: 砂防構造物設計 | J8: 架設計画 | L8: 施工計画・仮設備計画
B9: 架設計画 | C9: 3 | G9: その他設計（詳細設計） | H9: その他設計 | L9: 換気検討
G10: その他業務 | H10: その他業務
A11: 道路設計（詳細設計） | B11: 道路詳細設計（Ａ）予備設計あり | C11: 4 | D11: 設計計画及び施工計画 | E11: -
D12: 現地踏査 | E12: -
D13: 平面縦断設計 | E13: -
D14: 横断設計 | E14: -
D15: 道路付帯構造物・小構造物設計 | E15: -
D16: 仮設構造物・用排水設計 | E16: -
B17: 道路詳細設計（Ｂ）予備設計なし | C17: 4 | D17: 設計計画及び施工計画 | E17: -
D18: 現地踏査 | E18: -
D19: 平面縦断設計 | E19: -
D20: 横断設計 | E20: -
D21: 道路付帯構造物・小構造物設計 | E21: -
D22: 仮設構造物・用排水設計 | E22: -
A23: トンネル設計（詳細設計） | B23: 本体工 | C23: -
B24: 坑門工 | C24: -
B25: 防水工 | C25: -
B26: 排水工 | C26: -
B27: 舗装工 | C27: -
B28: 非常用施設 | C28: -
B29: 施工計画・仮設備計画 | C29: -
B30: 換気検討 | C30: -
A31: 河川構造物設計（詳細設計） | B31: 樋門 | C31: 3
B32: 河川排水機場 | C32: 3
B33: 護岸 | C33: 3
A34: 砂防構造物設計（詳細設計） | B34: 砂防堰堤 | C34: 4
B35: 流木対策工 | C35: 4
B36: 渓流保全工 | C36: 4
A37: その他設計（詳細設計）
A38: その他業務
